{"text_format":"2","workbook":"xlsx","n_sheets":2,"sheets":["1. részajánlati kör","2. részajánlati kör"],"not_rendered":{"charts":0,"images":0,"macros":0,"external_links":0,"defined_names":2,"comments":0,"pivot_tables":0},"unopened":[],"bounds":{"document_bytes":16777216,"sheet_cells":100000,"run_cost":"one","rows_first":2000,"rows_last":500,"rows_between":2000,"halvings":0,"cell_chars":16384,"cell_head_chars":4096},"cells_cut":0,"cells_raw":0,"read":"whole","date_system":"1900"}

{"sheet":"1. részajánlati kör","index":0,"n_rows":639,"n_cols":16,"rows_kept":639,"cut":false,"hidden":false,"merged":[[563,11,565,11],[563,12,565,12],[524,13,529,13],[532,12,534,12],[524,12,529,12],[502,11,521,11],[568,0,570,0],[568,2,570,2],[568,3,570,3],[568,4,570,4],[568,5,570,5],[568,6,570,6],[568,11,570,11],[568,12,570,12],[563,0,565,0],[563,2,565,2],[563,3,565,3],[563,4,565,4],[563,5,565,5],[563,6,565,6],[537,0,560,0],[537,1,544,1],[537,2,540,2],[537,11,560,11],[610,11,612,11],[610,12,612,12],[600,0,602,0],[600,2,602,2],[600,3,602,3],[620,12,627,12],[624,2,627,2],[624,3,627,3],[624,4,627,4],[624,5,627,5],[624,6,627,6],[615,5,617,5],[615,6,617,6],[615,11,617,11],[615,12,617,12],[615,4,617,4],[620,11,627,11],[620,3,623,3],[620,4,623,4],[620,5,623,5],[620,6,623,6],[610,0,612,0],[610,2,612,2],[610,3,612,3],[605,11,607,11],[590,11,592,11],[590,12,592,12],[595,0,597,0],[595,2,597,2],[595,3,597,3],[595,4,597,4],[595,5,597,5],[595,6,597,6],[595,11,597,11],[595,12,597,12],[590,0,592,0],[590,2,592,2],[590,3,592,3],[590,4,592,4],[590,5,592,5],[590,6,592,6],[605,12,607,12],[600,6,602,6],[600,11,602,11],[600,12,602,12],[573,11,577,11],[573,12,577,12],[585,0,587,0],[585,2,587,2],[585,3,587,3],[585,4,587,4],[585,5,587,5],[585,6,587,6],[585,11,587,11],[585,12,587,12],[580,0,582,0],[580,2,582,2],[580,3,582,3],[580,4,582,4],[580,5,582,5],[580,6,582,6],[580,11,582,11],[580,12,582,12],[573,0,577,0],[573,2,577,2],[573,3,577,3],[573,4,577,4],[573,5,577,5],[573,6,577,6],[537,12,560,12],[537,13,560,13],[541,2,544,2],[545,1,552,1],[545,2,548,2],[549,2,552,2],[553,1,560,1],[553,2,556,2],[557,2,560,2],[527,2,529,2],[527,3,529,3],[527,4,529,4],[532,0,534,0],[532,2,534,2],[532,3,534,3],[532,4,534,4],[532,5,534,5],[532,11,534,11],[524,0,529,0],[524,2,526,2],[524,3,526,3],[524,4,526,4],[524,11,529,11],[504,4,505,4],[510,1,513,1],[510,2,513,2],[510,3,511,3],[510,4,511,4],[512,3,513,3],[512,4,513,4],[506,1,509,1],[506,2,509,2],[506,3,507,3],[506,4,507,4],[508,3,509,3],[508,4,509,4],[518,1,521,1],[518,2,521,2],[518,3,519,3],[497,0,499,0],[497,2,499,2],[497,3,499,3],[497,4,499,4],[497,5,499,5],[497,6,499,6],[502,0,521,0],[502,1,505,1],[502,2,505,2],[502,3,503,3],[518,4,519,4],[520,3,521,3],[520,4,521,4],[514,1,517,1],[514,2,517,2],[514,3,515,3],[514,4,515,4],[516,3,517,3],[516,4,517,4],[502,4,503,4],[504,3,505,3],[471,0,494,0],[471,1,472,1],[491,1,492,1],[471,5,480,5],[493,1,494,1],[471,11,494,11],[471,12,494,12],[473,1,474,1],[475,1,476,1],[477,1,478,1],[479,1,480,1],[481,1,482,1],[481,2,490,2],[481,3,490,3],[481,5,490,5],[471,2,480,2],[471,3,480,3],[483,1,484,1],[485,1,486,1],[487,1,488,1],[489,1,490,1],[491,2,494,2],[491,3,494,3],[491,5,494,5],[459,0,468,0],[459,1,460,1],[459,2,468,2],[459,4,468,4],[459,11,468,11],[459,12,468,12],[459,13,468,13],[461,1,462,1],[463,1,464,1],[465,1,466,1],[467,1,468,1],[447,0,456,0],[452,2,456,2],[452,3,456,3],[452,4,456,4],[452,5,456,5],[452,6,456,6],[452,12,456,12],[452,13,456,13],[437,12,444,12],[437,13,444,13],[447,13,451,13],[437,7,438,7],[437,11,444,11],[439,7,440,7],[447,11,456,11],[447,12,451,12],[447,5,451,5],[447,6,451,6],[443,7,444,7],[437,0,444,0],[437,1,438,1],[437,2,438,2],[437,3,438,3],[437,5,438,5],[439,1,440,1],[439,2,440,2],[439,3,440,3],[439,5,440,5],[441,1,442,1],[441,2,442,2],[441,3,442,3],[443,3,444,3],[443,5,444,5],[443,1,444,1],[443,2,444,2],[441,5,442,5],[426,0,433,0],[426,2,433,2],[426,3,429,3],[426,4,433,4],[426,6,433,6],[421,0,424,0],[426,12,433,12],[421,3,425,3],[421,2,425,2],[421,4,425,4],[421,6,425,6],[421,12,425,12],[417,0,420,0],[417,4,420,4],[417,11,420,11],[417,12,420,12],[417,13,420,13],[414,0,416,0],[414,1,416,1],[414,2,416,2],[414,3,416,3],[414,4,416,4],[414,6,416,6],[417,2,420,2],[417,3,420,3],[417,6,420,6],[414,13,416,13],[417,5,418,5],[419,5,420,5],[412,0,413,0],[412,2,413,2],[412,3,413,3],[412,4,413,4],[412,5,413,5],[412,6,413,6],[412,13,413,13],[406,5,408,5],[412,12,413,12],[409,5,411,5],[406,0,411,0],[406,3,411,3],[406,4,411,4],[406,2,411,2],[406,6,411,6],[406,11,411,11],[406,12,411,12],[406,13,411,13],[186,2,195,2],[226,2,235,2],[266,1,305,1],[390,6,403,6],[397,2,403,2],[397,3,403,3],[266,3,285,3],[376,4,382,4],[383,2,389,2],[383,3,389,3],[383,4,389,4],[362,3,368,3],[362,4,368,4],[362,6,375,6],[369,2,375,2],[369,3,375,3],[369,4,375,4],[306,4,315,4],[336,4,345,4],[348,2,354,2],[186,6,225,6],[246,3,265,3],[397,4,403,4],[390,1,403,1],[186,13,345,13],[266,6,305,6],[348,4,354,4],[348,6,361,6],[355,2,361,2],[355,3,361,3],[355,4,361,4],[226,3,245,3],[226,6,265,6],[266,2,275,2],[186,11,345,11],[186,12,345,12],[348,3,354,3],[348,11,403,11],[348,12,403,12],[348,13,403,13],[226,7,265,7],[206,2,215,2],[196,2,205,2],[216,2,225,2],[186,3,205,3],[206,3,225,3],[306,2,315,2],[306,3,325,3],[46,13,183,13],[46,4,54,4],[55,3,63,3],[55,4,63,4],[64,3,68,3],[64,4,68,4],[87,4,91,4],[69,3,77,3],[69,4,77,4],[78,3,86,3],[78,4,86,4],[87,3,91,3],[170,3,178,3],[179,4,183,4],[179,3,183,3],[46,0,183,0],[46,1,68,1],[46,2,68,2],[46,3,54,3],[46,11,183,11],[46,12,183,12],[170,4,178,4],[69,1,91,1],[69,2,91,2],[147,3,155,3],[147,4,155,4],[156,3,160,3],[92,1,137,1],[92,2,137,2],[92,3,109,3],[110,3,127,3],[128,3,137,3],[138,1,160,1],[138,2,160,2],[138,3,146,3],[161,1,183,1],[161,2,183,2],[161,3,169,3],[32,11,43,11],[32,12,43,12],[34,3,35,3],[34,4,35,4],[34,5,35,5],[34,10,35,10],[36,3,37,3],[36,4,37,4],[36,5,37,5],[36,6,37,6],[32,10,33,10],[36,10,37,10],[40,6,41,6],[38,10,39,10],[32,0,43,0],[32,1,37,1],[32,2,37,2],[32,3,33,3],[32,4,33,4],[32,5,33,5],[38,1,43,1],[38,2,43,2],[40,3,41,3],[40,4,41,4],[38,3,39,3],[42,3,43,3],[42,4,43,4],[42,5,43,5],[40,5,41,5],[24,0,29,0],[24,1,25,1],[24,2,29,2],[24,4,25,4],[24,5,25,5],[24,11,29,11],[26,1,27,1],[26,4,27,4],[26,5,27,5],[28,1,29,1],[186,7,225,7],[38,6,39,6],[38,5,39,5],[186,4,195,4],[196,4,205,4],[206,4,215,4],[40,10,41,10],[42,6,43,6],[42,10,43,10],[156,4,160,4],[92,4,100,4],[101,4,109,4],[110,4,118,4],[119,4,127,4],[128,4,132,4],[138,4,146,4],[133,4,137,4],[161,4,169,4],[38,4,39,4],[390,2,396,2],[390,3,396,3],[390,4,396,4],[376,1,389,1],[362,1,375,1],[348,1,361,1],[226,1,265,1],[306,1,345,1],[286,2,295,2],[286,3,305,3],[236,2,245,2],[2,0,21,0],[14,4,17,4],[18,1,21,1],[10,2,13,2],[10,4,13,4],[18,2,21,2],[10,1,13,1],[2,1,5,1],[6,1,9,1],[14,1,17,1],[18,4,21,4],[632,0,634,10],[636,5,636,9],[638,5,638,9],[630,0,630,10],[631,0,631,10],[615,0,617,0],[615,2,617,2],[615,3,617,3],[600,4,602,4],[600,5,602,5],[620,0,627,0],[620,2,623,2],[605,0,607,0],[605,2,607,2],[605,3,607,3],[605,4,607,4],[605,5,607,5],[605,6,607,6],[610,5,612,5],[610,6,612,6],[610,4,612,4],[2,13,21,13],[24,12,29,12],[6,5,9,5],[24,13,29,13],[10,5,13,5],[2,2,5,2],[2,4,5,4],[2,5,5,5],[6,2,9,2],[6,4,9,4],[2,11,21,11],[14,5,17,5],[2,12,21,12],[14,2,17,2],[18,5,21,5],[28,4,29,4],[28,5,29,5],[502,12,521,12],[424,10,425,10],[376,2,382,2],[376,3,382,3],[362,2,368,2],[412,11,413,11],[426,11,433,11],[421,11,424,11],[414,11,416,11],[414,12,416,12],[421,5,422,5],[423,5,424,5],[430,3,433,3],[426,5,427,5],[428,5,429,5],[430,5,431,5],[432,5,433,5],[447,3,451,3],[441,7,442,7],[376,6,389,6],[447,4,451,4],[447,2,451,2],[497,11,499,11],[497,12,499,12],[186,0,345,0],[306,6,345,6],[306,7,345,7],[316,2,325,2],[316,4,325,4],[326,2,335,2],[326,3,345,3],[216,4,225,4],[266,4,275,4],[286,4,295,4],[296,2,305,2],[296,4,305,4],[266,7,305,7],[276,2,285,2],[276,4,285,4],[236,4,245,4],[246,4,255,4],[256,2,265,2],[226,4,235,4],[256,4,265,4],[326,4,335,4],[336,2,345,2],[186,1,225,1],[246,2,255,2],[406,14,408,14],[409,14,411,14],[406,15,408,15],[409,15,411,15],[426,14,427,14],[426,15,427,15],[430,14,431,14],[430,15,431,15],[426,13,433,13],[417,14,418,14],[419,14,420,14],[417,15,418,15],[419,15,420,15],[421,13,425,13],[412,15,413,15],[412,14,413,14],[423,15,424,15],[423,14,424,14],[421,15,422,15],[421,14,422,14]]}
[]
[null,"mennyiség (m2)","papírminőség","méret","szín","kötészet",{"$nulls":4},"Nyomdai kivitelezés díja (nettó Ft/m2)","Nyomdai előkészítés díja (ppt vagy egyéb nem nyomdai kompatibilis grafikai anyag esetén) (nettó Ft)","Egyszerű gafikai tervezés, szerkesztés díja (pályázati arculat alapján 1 komplett tervvariáció) (nettó Ft)","Grafikai tervezés, szerkesztés díja (egyéb arculat alapján 3 komplett tervvariáció) (nettó Ft)"]
["Plakát (1)  ","1-től 5-ig","min. 170 g citylight ","A0","4+0","vágva",{"$nulls":4},9250,4000,8000,10000]
[null,null,null,"B1",{"$nulls":6},9250]
[null,null,null,"A1",{"$nulls":6},9250]
[null,null,null,"A2",{"$nulls":6},9250]
[null,"6-tól 10-ig","min. 170 g citylight ","A0","4+0","vágva",{"$nulls":4},8500]
[null,null,null,"B1",{"$nulls":6},8500]
[null,null,null,"A1",{"$nulls":6},8500]
[null,null,null,"A2",{"$nulls":6},8500]
[null,"10 fölött","min. 170 g citylight ","A0","4+0","vágva",{"$nulls":4},8500]
[null,null,null,"B1",{"$nulls":6},8000]
[null,null,null,"A1",{"$nulls":6},8000]
[null,null,null,"A2",{"$nulls":6},8000]
[null,"1-től 5-ig","canvas","A0","4+0","vágva",{"$nulls":4},13000]
[null,null,null,"B1",{"$nulls":6},13000]
[null,null,null,"A1",{"$nulls":6},13000]
[null,null,null,"A2",{"$nulls":6},13000]
[null,"6-tól 10-ig","canvas","A0","4+0","vágva",{"$nulls":4},11000]
[null,null,null,"B1",{"$nulls":6},11000]
[null,null,null,"A1",{"$nulls":6},11000]
[null,null,null,"A2",{"$nulls":6},11000]
[{"$nulls":10},{"$f":"SUM(K3:K22)","v":199500},{"$f":"SUM(L3)","v":4000},{"$f":"SUM(M3)","v":8000},{"$f":"SUM(N3)","v":10000}]
[null,"mennyiség (db)","papírminőség","méret","szín","kötészet",{"$nulls":4},"Nyomdai kivitelezés díja (nettó Ft/db)","Nyomdai előkészítés díja (ppt vagy egyéb nem nyomdai kompatibilis grafikai anyag esetén) (nettó Ft)","Egyszerű gafikai tervezés, szerkesztés díja (pályázati arculat alapján 1 komplett tervvariáció) (nettó Ft)","Grafikai tervezés, szerkesztés díja (egyéb arculat alapján 3 komplett tervvariáció) (nettó Ft)"]
["Plakát (2)","1-50","150 g fényes","A2","4+0","vágva",{"$nulls":4},1301,4000,8000,10000]
[null,null,null,"A3",{"$nulls":6},403]
[null,"100-300",null,"A2","4+0","vágva",{"$nulls":4},240]
[null,null,null,"A3",{"$nulls":6},123]
[null,"301-600",null,"A2","4+0","vágva",{"$nulls":4},107]
[null,null,null,"A3",{"$nulls":6},70]
[{"$nulls":10},{"$f":"SUM(K25:K30)","v":2244},{"$f":"SUM(L25)","v":4000},{"$f":"SUM(M25)","v":8000},{"$f":"SUM(N25)","v":10000}]
[null,"mennyiség (db)","papírminőség","méret","szín","kötészet",{"$nulls":4},"Nyomdai kivitelezés díja (nettó Ft/db)","Nyomdai előkészítés díja (ppt vagy egyéb nem nyomdai kompatibilis grafikai anyag esetén) (nettó Ft)","Egyszerű gafikai tervezés, szerkesztés díja (1 komplett tervvariáció) (nettó Ft)"]
["Meghívó","50-től 150-ig","300 g/m2 műnyomó","A5","4+4","biegelve, hajtva",{"$nulls":4},276,4000,8000]
[]
[null,null,null,"21*21 cm","4+4","biegelve, hajtva",{"$nulls":4},308]
[]
[null,null,null,"A/4","4+4","biegelve, hajtva, matt fólia 2 oldalon",{"$nulls":4},391]
[]
[null,"151-től 300-ig","300 g/m2 műnyomó","A5","4+4","biegelve, hajtva",{"$nulls":4},120]
[]
[null,null,null,"21*21 cm","4+4","biegelve, hajtva",{"$nulls":4},133]
[]
[null,null,null,"A/4","4+4","biegelve, hajtva, matt fólia 2 oldalon",{"$nulls":4},194]
[]
[{"$nulls":10},{"$f":"SUM(K33:K44)","v":1422},{"$f":"SUM(L33)","v":4000},{"$f":"SUM(M33)","v":8000}]
[null,"mennyiség (db)","papírminőség","méret","szín","terjedelem","kötészet",null," ",null,"Nyomdai kivitelezés díja (nettó Ft/össz. db)","Nyomdai előkészítés díja (nem nyomdai kompatibilis grafikai anyag esetén) (nettó Ft)","Egyszerű grafikai tervezés (borító + 1 oldalpár) pályázati arculat alapján 1 komplett tervvariáció díja (nettó Ft) ","Grafikai tervezés (borító + 1 oldalpár) egyéb arculat alapján 3 komplett tervvariáció díja (nettó Ft) ","Tördelés-szerkesztés egyszerű 2 elektronikus korrektúraforduló lebonyolításával (nettó Ft/össz. oldal)","Tördelés-szerkesztés összetett  2 elektronikus korrektúraforduló lebonyolításával (nettó Ft/össz. oldal)"]
["Kiadvány (1)",100,"borító: 250 g műnyomó belív: 90 g műnyomó","A/5","bor: 4+4            belív: 4+4","4 old","hajtva",null,null,null,17500,6000,12000,20000,514.5,540.22500000000002]
[{"$nulls":5},"bor+8 old","irkafűzve",null,null,null,37700,null,null,null,4630.5,4862.0250000000005]
[{"$nulls":5},"bor+16 old","irkafűzve",null,null,null,44700,null,null,null,6174,6482.7000000000007]
[{"$nulls":5},"bor+24 old","irkafűzve",null,null,null,53300,null,null,null,12862.5,13505.625]
[{"$nulls":5},"bor+32 old","irkafűzve",null,null,null,61900,null,null,null,16978.5,17827.424999999999]
[{"$nulls":5},"bor+36 old","irkafűzve",null,null,null,66200,null,null,null,19036.5,19988.325000000001]
[{"$nulls":5},"bor+44 old","irkafűzve",null,null,null,74800,null,null,null,23152.5,24310.125]
[{"$nulls":5},"bor+52 old","irkafűzve",null,null,null,83400,null,null,null,27268.5,28631.925000000003]
[{"$nulls":5},"bor+60 old","irkafűzve",null,null,null,91900,null,null,null,31384.499999999996,32953.724999999999]
[null,null,null,"VB5 mérettől függetlenül","bor: 4+4            belív: 4+4","4 old","hajtva",null,null,null,15066,null,null,null,514.5,540.22500000000002]
[{"$nulls":5},"bor+8 old","irkafűzve",null,null,null,36531,null,null,null,4630.5,4862.0250000000005]
[{"$nulls":5},"bor+16 old","irkafűzve",null,null,null,46251,null,null,null,6174,6482.7000000000007]
[{"$nulls":5},"bor+24 old","irkafűzve",null,null,null,55890,null,null,null,12862.5,13505.625]
[{"$nulls":5},"bor+32 old","irkafűzve",null,null,null,65610,null,null,null,16978.5,17827.424999999999]
[{"$nulls":5},"bor+36 old","irkafűzve",null,null,null,70470,null,null,null,19036.5,19988.325000000001]
[{"$nulls":5},"bor+44 old","irkafűzve",null,null,null,80190,null,null,null,23152.5,24310.125]
[{"$nulls":5},"bor+52 old","irkafűzve",null,null,null,89829,null,null,null,27268.5,28631.925000000003]
[{"$nulls":5},"bor+60 old","irkafűzve",null,null,null,99549,null,null,null,31384.499999999996,32953.724999999999]
[null,null,null,"A/4","bor: 4+4            belív: 4+4","4 old","hajtva",null,null,null,15066,null,null,null,514.5,540.22500000000002]
[{"$nulls":5},"bor+8 old","irkafűzve",null,null,null,40176,null,null,null,4630.5,4862.0250000000005]
[{"$nulls":5},"bor+16 old","irkafűzve",null,null,null,54027,null,null,null,6174,6482.7000000000007]
[{"$nulls":5},"bor+32 old","irkafűzve",null,null,null,81891,null,null,null,16978.5,17827.424999999999]
[{"$nulls":5},"bor+44 old","irkafűzve",null,null,null,102708,null,null,null,23152.5,24310.125]
[null,200,"borító: 250 g műnyomó belív: 90 g műnyomó","A/5","bor: 4+4            belív: 4+4","4 old","hajtva",null,null,null,20200,null,null,null,514.5,540.22500000000002]
[{"$nulls":5},"bor+8 old","irkafűzve",null,null,null,48000,null,null,null,4630.5,4862.0250000000005]
[{"$nulls":5},"bor+16 old","irkafűzve",null,null,null,64000,null,null,null,6174,6482.7000000000007]
[{"$nulls":5},"bor+24 old","irkafűzve",null,null,null,80000,null,null,null,12862.5,13505.625]
[{"$nulls":5},"bor+32 old","irkafűzve",null,null,null,96000,null,null,null,16978.5,17827.424999999999]
[{"$nulls":5},"bor+36 old","irkafűzve",null,null,null,104200,null,null,null,19036.5,19988.325000000001]
[{"$nulls":5},"bor+44 old","irkafűzve",null,null,null,120200,null,null,null,23152.5,24310.125]
[{"$nulls":5},"bor+52 old","irkafűzve",null,null,null,136200,null,null,null,27268.5,28631.925000000003]
[{"$nulls":5},"bor+60 old","irkafűzve",null,null,null,152400,null,null,null,31384.499999999996,32953.724999999999]
[null,null,null,"VB5 mérettől függetlenül","bor: 4+4            belív: 4+4","4 old","hajtva",null,null,null,22140,null,null,null,514.5,540.22500000000002]
[{"$nulls":5},"bor+8 old","irkafűzve",null,null,null,56880,null,null,null,4630.5,4862.0250000000005]
[{"$nulls":5},"bor+16 old","irkafűzve",null,null,null,73440,null,null,null,6174,6482.7000000000007]
[{"$nulls":5},"bor+24 old","irkafűzve",null,null,null,97200,null,null,null,12862.5,13505.625]
[{"$nulls":5},"bor+32 old","irkafűzve",null,null,null,108900,null,null,null,16978.5,17827.424999999999]
[{"$nulls":5},"bor+36 old","irkafűzve",null,null,null,121860,null,null,null,19036.5,19988.325000000001]
[{"$nulls":5},"bor+44 old","irkafűzve",null,null,null,144540,null,null,null,23152.5,24310.125]
[{"$nulls":5},"bor+52 old","irkafűzve",null,null,null,157500,null,null,null,27268.5,28631.925000000003]
[{"$nulls":5},"bor+60 old","irkafűzve",null,null,null,180360,null,null,null,31384.499999999996,32953.724999999999]
[null,null,null,"A/4","bor: 4+4            belív: 4+4","4 old","hajtva",null,null,null,22140,null,null,null,514.5,540.22500000000002]
[{"$nulls":5},"bor+8 old","irkafűzve",null,null,null,64800,null,null,null,4630.5,4862.0250000000005]
[{"$nulls":5},"bor+16 old","irkafűzve",null,null,null,94500,null,null,null,6174,6482.7000000000007]
[{"$nulls":5},"bor+32 old","irkafűzve",null,null,null,152640,null,null,null,16978.5,17827.424999999999]
[{"$nulls":5},"bor+44 old","irkafűzve",null,null,null,196200,null,null,null,23152.5,24310.125]
[null,500,"borító: 250 g műnyomó belív: 90 g műnyomó","A/5","bor: 4+4            belív: 1+1 fekete","4 old","hajtva",null,null,null,16800,null,null,null,489.99999999999994,525]
[{"$nulls":5},"bor+8 old","irkafűzve",null,null,null,49200,null,null,null,4410,4725]
[{"$nulls":5},"bor+16 old","irkafűzve",null,null,null,57200,null,null,null,5880,6300]
[{"$nulls":5},"bor+24 old","irkafűzve",null,null,null,75200,null,null,null,12250,13125]
[{"$nulls":5},"bor+32 old","irkafűzve",null,null,null,75600,null,null,null,16169.999999999998,17325]
[{"$nulls":5},"bor+36 old","irkafűzve",null,null,null,88000,null,null,null,18130,19425]
[{"$nulls":5},"bor+44 old","irkafűzve",null,null,null,98800,null,null,null,22050,23625]
[{"$nulls":5},"bor+52 old","irkafűzve",null,null,null,108000,null,null,null,25970,27825]
[{"$nulls":5},"bor+60 old","irkafűzve",null,null,null,119200,null,null,null,29889.999999999996,32025]
[{"$nulls":4},"bor: 4+4            belív: 4+4","4 old","hajtva",null,null,null,30000,null,null,null,514.5,540.22500000000002]
[{"$nulls":5},"bor+8 old","irkafűzve",null,null,null,76000,null,null,null,4630.5,4862.0250000000005]
[{"$nulls":5},"bor+16 old","irkafűzve",null,null,null,90500,null,null,null,6174,6482.7000000000007]
[{"$nulls":5},"bor+24 old","irkafűzve",null,null,null,123000,null,null,null,12862.5,13505.625]
[{"$nulls":5},"bor+32 old","irkafűzve",null,null,null,134000,null,null,null,16978.5,17827.424999999999]
[{"$nulls":5},"bor+36 old","irkafűzve",null,null,null,157000,null,null,null,19036.5,19988.325000000001]
[{"$nulls":5},"bor+44 old","irkafűzve",null,null,null,181500,null,null,null,23152.5,24310.125]
[{"$nulls":5},"bor+52 old","irkafűzve",null,null,null,200500,null,null,null,27268.5,28631.925000000003]
[{"$nulls":5},"bor+60 old","irkafűzve",null,null,null,225000,null,null,null,31384.499999999996,32953.724999999999]
[null,null,null,"VB5 mérettől függetlenül","bor: 4+4            belív: 1+1 fekete","4 old","hajtva",null,null,null,19200,null,null,null,489.99999999999994,525]
[{"$nulls":5},"bor+8 old","irkafűzve",null,null,null,53200,null,null,null,4410,4725]
[{"$nulls":5},"bor+16 old","irkafűzve",null,null,null,62400,null,null,null,5880,6300]
[{"$nulls":5},"bor+24 old","irkafűzve",null,null,null,78400,null,null,null,12250,13125]
[{"$nulls":5},"bor+32 old","irkafűzve",null,null,null,84400,null,null,null,16169.999999999998,17325]
[{"$nulls":5},"bor+36 old","irkafűzve",null,null,null,97200,null,null,null,18130,19425]
[{"$nulls":5},"bor+44 old","irkafűzve",null,null,null,106000,null,null,null,22050,23625]
[{"$nulls":5},"bor+52 old","irkafűzve",null,null,null,118800,null,null,null,25970,27825]
[{"$nulls":5},"bor+60 old","irkafűzve",null,null,null,131600,null,null,null,29889.999999999996,32025]
[{"$nulls":4},"bor: 4+4            belív: 4+4","4 old","hajtva",null,null,null,29250,null,null,null,514.5,540.22500000000002]
[{"$nulls":5},"bor+8 old","irkafűzve",null,null,null,73350,null,null,null,4630.5,4862.0250000000005]
[{"$nulls":5},"bor+16 old","irkafűzve",null,null,null,87300,null,null,null,6174,6482.7000000000007]
[{"$nulls":5},"bor+24 old","irkafűzve",null,null,null,120600,null,null,null,12862.5,13505.625]
[{"$nulls":5},"bor+32 old","irkafűzve",null,null,null,131400,null,null,null,16978.5,17827.424999999999]
[{"$nulls":5},"bor+36 old","irkafűzve",null,null,null,153450,null,null,null,19036.5,19988.325000000001]
[{"$nulls":5},"bor+44 old","irkafűzve",null,null,null,174150,null,null,null,23152.5,24310.125]
[{"$nulls":5},"bor+52 old","irkafűzve",null,null,null,195750,null,null,null,27268.5,28631.925000000003]
[{"$nulls":5},"bor+60 old","irkafűzve",null,null,null,220500,null,null,null,31384.499999999996,32953.724999999999]
[null,null,null,"A/4","bor: 4+4            belív: 1+1 fekete","4 old","hajtva",null,null,null,20800,null,null,null,489.99999999999994,525]
[{"$nulls":5},"bor+8 old","irkafűzve",null,null,null,69200,null,null,null,4410,4725]
[{"$nulls":5},"bor+16 old","irkafűzve",null,null,null,91200,null,null,null,5880,6300]
[{"$nulls":5},"bor+32 old","irkafűzve",null,null,null,135600,null,null,null,16169.999999999998,17325]
[{"$nulls":5},"bor+44 old","irkafűzve",null,null,null,175600,null,null,null,22050,23625]
[{"$nulls":4},"bor: 4+4            belív: 4+4","4 old","hajtva",null,null,null,36900,null,null,null,514.5,540.22500000000002]
[{"$nulls":5},"bor+8 old","irkafűzve",null,null,null,94500,null,null,null,4630.5,4862.0250000000005]
[{"$nulls":5},"bor+16 old","irkafűzve",null,null,null,136350,null,null,null,6174,6482.7000000000007]
[{"$nulls":5},"bor+32 old","irkafűzve",null,null,null,220050,null,null,null,16978.5,17827.424999999999]
[{"$nulls":5},"bor+44 old","irkafűzve",null,null,null,291150,null,null,null,23152.5,24310.125]
[null,1000,"borító: 250 g műnyomó belív: 90 g műnyomó","A/5","bor: 4+4            belív: 4+4","4 old","hajtva",null,null,null,36600,null,null,null,514.5,540.22500000000002]
[{"$nulls":5},"bor+8 old","irkafűzve",null,null,null,90000,null,null,null,4630.5,4862.0250000000005]
[{"$nulls":5},"bor+16 old","irkafűzve",null,null,null,110600,null,null,null,6174,6482.7000000000007]
[{"$nulls":5},"bor+24 old","irkafűzve",null,null,null,149300,null,null,null,12862.5,13505.625]
[{"$nulls":5},"bor+32 old","irkafűzve",null,null,null,166900,null,null,null,16978.5,17827.424999999999]
[{"$nulls":5},"bor+36 old","irkafűzve",null,null,null,193800,null,null,null,19036.5,19988.325000000001]
[{"$nulls":5},"bor+44 old","irkafűzve",null,null,null,227500,null,null,null,23152.5,24310.125]
[{"$nulls":5},"bor+52 old","irkafűzve",null,null,null,252200,null,null,null,27268.5,28631.925000000003]
[{"$nulls":5},"bor+60 old","irkafűzve",null,null,null,282500,null,null,null,31384.499999999996,32953.724999999999]
[null,null,null,"VB5 mérettől függetlenül","bor: 4+4            belív: 4+4","4 old","hajtva",null,null,null,28240,null,null,null,514.5,540.22500000000002]
[{"$nulls":5},"bor+8 old","irkafűzve",null,null,null,78640,null,null,null,4630.5,4862.0250000000005]
[{"$nulls":5},"bor+16 old","irkafűzve",null,null,null,96960,null,null,null,6174,6482.7000000000007]
[{"$nulls":5},"bor+24 old","irkafűzve",null,null,null,130320,null,null,null,12862.5,13505.625]
[{"$nulls":5},"bor+32 old","irkafűzve",null,null,null,148400,null,null,null,16978.5,17827.424999999999]
[{"$nulls":5},"bor+36 old","irkafűzve",null,null,null,171120,null,null,null,19036.5,19988.325000000001]
[{"$nulls":5},"bor+44 old","irkafűzve",null,null,null,199760,null,null,null,23152.5,24310.125]
[{"$nulls":5},"bor+52 old","irkafűzve",null,null,null,222560,null,null,null,27268.5,28631.925000000003]
[{"$nulls":5},"bor+60 old","irkafűzve",null,null,null,251120,null,null,null,31384.499999999996,32953.724999999999]
[null,null,null,"A/4","bor: 4+4            belív: 4+4","4 old","hajtva",null,null,null,36080,null,null,null,514.5,540.22500000000002]
[{"$nulls":5},"bor+8 old","irkafűzve",null,null,null,106720,null,null,null,4630.5,4862.0250000000005]
[{"$nulls":5},"bor+16 old","irkafűzve",null,null,null,151840,null,null,null,6174,6482.7000000000007]
[{"$nulls":5},"bor+32 old","irkafűzve",null,null,null,242400,null,null,null,16978.5,17827.424999999999]
[{"$nulls":5},"bor+44 old","irkafűzve",null,null,null,320640,null,null,null,23152.5,24310.125]
[null,2000,"borító: 250 g műnyomó belív: 90 g műnyomó","A/5","bor: 4+4            belív: 4+4","4 old","hajtva",null,null,null,45000,null,null,null,514.5,540.22500000000002]
[{"$nulls":5},"bor+8 old","irkafűzve",null,null,null,117400,null,null,null,4630.5,4862.0250000000005]
[{"$nulls":5},"bor+16 old","irkafűzve",null,null,null,152000,null,null,null,6174,6482.7000000000007]
[{"$nulls":5},"bor+24 old","irkafűzve",null,null,null,206000,null,null,null,12862.5,13505.625]
[{"$nulls":5},"bor+32 old","irkafűzve",null,null,null,225400,null,null,null,16978.5,17827.424999999999]
[{"$nulls":5},"bor+36 old","irkafűzve",null,null,null,259800,null,null,null,19036.5,19988.325000000001]
[{"$nulls":5},"bor+44 old","irkafűzve",null,null,null,313800,null,null,null,23152.5,24310.125]
[{"$nulls":5},"bor+52 old","irkafűzve",null,null,null,349800,null,null,null,27268.5,28631.925000000003]
[{"$nulls":5},"bor+60 old","irkafűzve",null,null,null,387200,null,null,null,31384.499999999996,32953.724999999999]
[null,null,null,"VB5 mérettől függetlenül","bor: 4+4            belív: 4+4","4 old","hajtva",null,null,null,37280,null,null,null,514.5,540.22500000000002]
[{"$nulls":5},"bor+8 old","irkafűzve",null,null,null,107040,null,null,null,4630.5,4862.0250000000005]
[{"$nulls":5},"bor+16 old","irkafűzve",null,null,null,138080,null,null,null,6174,6482.7000000000007]
[{"$nulls":5},"bor+24 old","irkafűzve",null,null,null,185440,null,null,null,12862.5,13505.625]
[{"$nulls":5},"bor+32 old","irkafűzve",null,null,null,214400,null,null,null,16978.5,17827.424999999999]
[{"$nulls":5},"bor+36 old","irkafűzve",null,null,null,244000,null,null,null,19036.5,19988.325000000001]
[{"$nulls":5},"bor+44 old","irkafűzve",null,null,null,291200,null,null,null,23152.5,24310.125]
[{"$nulls":5},"bor+52 old","irkafűzve",null,null,null,323040,null,null,null,27268.5,28631.925000000003]
[{"$nulls":5},"bor+60 old","irkafűzve",null,null,null,370240,null,null,null,31384.499999999996,32953.724999999999]
[null,null,null,"A/4","bor: 4+4            belív: 4+4","4 old","hajtva",null,null,null,45920,null,null,null,514.5,540.22500000000002]
[{"$nulls":5},"bor+8 old","irkafűzve",null,null,null,154720,null,null,null,4630.5,4862.0250000000005]
[{"$nulls":5},"bor+16 old","irkafűzve",null,null,null,209920,null,null,null,6174,6482.7000000000007]
[{"$nulls":5},"bor+32 old","irkafűzve",null," ",null,329920,null,null,null,16978.5,17827.424999999999]
[{"$nulls":5},"bor+44 old","irkafűzve",null,null,null,440320,null,null,null,23152.5,24310.125]
[{"$nulls":10},{"$f":"SUM(K47:K184)","v":17654874},{"$f":"SUM(L47)","v":6000},{"$f":"SUM(M47)","v":12000},{"$f":"N47","v":20000},{"$f":"SUM(O47:O184)","v":1996750},{"$f":"SUM(P47:P184)","v":2103433.5000000005}]
[null,"mennyiség (db)","papírminőség","méret","szín","terjedelem","konfekcionálás","kötészet"," ",null,"Nyomdai kivitelezés díja (nettó Ft/össz. db)","Nyomdai előkészítés díja (nem nyomdai kompatibilis grafikai anyag esetén) (nettó Ft)","Egyszerű grafikai tervezés (borító + 1 oldalpár) pályázati arculat alapján 1 komplett tervvariáció díja (nettó Ft) ","Grafikai tervezés (borító + 1 oldalpár) egyéb arculat alapján 3 komplett tervvariáció díja (nettó Ft) ","Tördelés-szerkesztés egyszerű 2 elektronikus korrektúraforduló lebonyolításával (nettó Ft/össz. oldal)","Tördelés-szerkesztés összetett  2 elektronikus korrektúraforduló lebonyolításával (nettó Ft/össz. oldal)"]
["Kiadvány (2)",100,"Borító 300 g/m2 műnyomó                        Belív 80 g/m2 ofszet","A/5","Borító 4+4          Belív 1+1 (fekete)","Belív 72 oldal                 Borító 4 oldal","borító matt fóliázva","ragasztókötött",null," ",58700,6000,12000,20000,21900,21900]
[{"$nulls":5},"Belív 96 oldal                 Borító 4 oldal",{"$nulls":4},64200,null,null,null,29100,29100]
[{"$nulls":5},"Belív 128 oldal                 Borító 4 oldal",{"$nulls":4},70700,null,null,null,38700,38700]
[{"$nulls":5},"Belív 160 oldal                 Borító 4 oldal",{"$nulls":4},76200,null,null,null,48300,48300]
[{"$nulls":5},"Belív 192 oldal                 Borító 4 oldal",{"$nulls":4},81700,null,null,null,57900,57900]
[{"$nulls":5},"Belív 216 oldal                 Borító 4 oldal",{"$nulls":4},87700,null,null,null,65100,65100]
[{"$nulls":5},"Belív 240 oldal                 Borító 4 oldal",{"$nulls":4},93800,null,null,null,72300,72300]
[{"$nulls":5},"Belív 272 oldal                 Borító 4 oldal",{"$nulls":4},101600,null,null,null,81900,81900]
[{"$nulls":5},"Belív 304 oldal                 Borító 4 oldal",{"$nulls":4},108500,null,null,null,91500,91500]
[{"$nulls":5},"8 oldalankénti felár 400 oldalig",{"$nulls":4},7000,null,null,null,4800,4800]
[null,null,"Borító 300 g/m2 műnyomó                        Belív 115 g/m2 műnyomó",null,"Borító 4+4          Belív 4+4","Belív 72 oldal                 Borító 4 oldal",{"$nulls":4},86625,null,null,null,21900,21900]
[{"$nulls":5},"Belív 96 oldal                 Borító 4 oldal",{"$nulls":4},106200,null,null,null,29100,29100]
[{"$nulls":5},"Belív 128 oldal                 Borító 4 oldal",{"$nulls":4},133050,null,null,null,38700,38700]
[{"$nulls":5},"Belív 160 oldal                 Borító 4 oldal",{"$nulls":4},159150,null,null,null,48300,48300]
[{"$nulls":5},"Belív 192 oldal                 Borító 4 oldal",{"$nulls":4},186000,null,null,null,57900,57900]
[{"$nulls":5},"Belív 216 oldal                 Borító 4 oldal",{"$nulls":4},206325,null,null,null,65100,65100]
[{"$nulls":5},"Belív 240 oldal                 Borító 4 oldal",{"$nulls":4},226650,null,null,null,72300,72300]
[{"$nulls":5},"Belív 272 oldal                 Borító 4 oldal",{"$nulls":4},253500,null,null,null,81900,81900]
[{"$nulls":5},"Belív 304 oldal                 Borító 4 oldal",{"$nulls":4},280350,null,null,null,91500,91500]
[{"$nulls":5},"8 oldalankénti felár 400 oldalig",{"$nulls":4},15000,null,null,null,4800,4800]
[null,null,"Borító 300 g/m2 műnyomó                        Belív 80 g/m2 ofszet","VB/5 mérettől függetlenül","Borító 4+4          Belív 1+1 (fekete)","Belív 72 oldal                 Borító 4 oldal",{"$nulls":4},70000,null,null,null,43800,43800]
[{"$nulls":5},"Belív 96 oldal                 Borító 4 oldal",{"$nulls":4},76200,null,null,null,58200,58200]
[{"$nulls":5},"Belív 128 oldal                 Borító 4 oldal",{"$nulls":4},83500,null,null,null,61920,61920]
[{"$nulls":5},"Belív 160 oldal                 Borító 4 oldal",{"$nulls":4},90900,null,null,null,77280,77280]
[{"$nulls":5},"Belív 192 oldal                 Borító 4 oldal",{"$nulls":4},98900,null,null,null,92640,92640]
[{"$nulls":5},"Belív 216 oldal                 Borító 4 oldal",{"$nulls":4},104800,null,null,null,91140,91140]
[{"$nulls":5},"Belív 240 oldal                 Borító 4 oldal",{"$nulls":4},111700,null,null,null,101220,101220]
[{"$nulls":5},"Belív 272 oldal                 Borító 4 oldal",{"$nulls":4},120600,null,null,null,106470,106470]
[{"$nulls":5},"Belív 304 oldal                 Borító 4 oldal",{"$nulls":4},129500,null,null,null,109800,109800]
[{"$nulls":5},"8 oldalankénti felár 400 oldalig",{"$nulls":4},7200,null,null,null,4800,4800]
[null,null,"Borító 300 g/m2 műnyomó                        Belív 115 g/m2 műnyomó",null,"Borító 4+4          Belív 4+4","Belív 72 oldal                 Borító 4 oldal",{"$nulls":4},116625,null,null,null,43800,43800]
[{"$nulls":5},"Belív 96 oldal                 Borító 4 oldal",{"$nulls":4},143475,null,null,null,58200,58200]
[{"$nulls":5},"Belív 128 oldal                 Borító 4 oldal",{"$nulls":4},180000,null,null,null,61920,61920]
[{"$nulls":5},"Belív 160 oldal                 Borító 4 oldal",{"$nulls":4},217350,null,null,null,77280,77280]
[{"$nulls":5},"Belív 192 oldal                 Borító 4 oldal",{"$nulls":4},253875,null,null,null,92640,92640]
[{"$nulls":5},"Belív 216 oldal                 Borító 4 oldal",{"$nulls":4},281550,null,null,null,91140,91140]
[{"$nulls":5},"Belív 240 oldal                 Borító 4 oldal",{"$nulls":4},309300,null,null,null,101220,101220]
[{"$nulls":5},"Belív 272 oldal                 Borító 4 oldal",{"$nulls":4},346050,null,null,null,106470,106470]
[{"$nulls":5},"Belív 304 oldal                 Borító 4 oldal",{"$nulls":4},382050,null,null,null,109800,109800]
[{"$nulls":5},"8 oldalankénti felár 400 oldalig",{"$nulls":4},17000,null,null,null,4800,4800]
[null,200,"Borító 300 g/m2 műnyomó                        Belív 80 g/m2 ofszet","A/5","Borító 4+4          Belív 1+1 (fekete)","Belív 72 oldal                 Borító 4 oldal","borító matt fóliázva","ragasztókötött",null,null,79200,null,null,null,21900,21900]
[{"$nulls":5},"Belív 96 oldal                 Borító 4 oldal",{"$nulls":4},88000,null,null,null,29100,29100]
[{"$nulls":5},"Belív 128 oldal                 Borító 4 oldal",{"$nulls":4},101000,null,null,null,38700,38700]
[{"$nulls":5},"Belív 160 oldal                 Borító 4 oldal",{"$nulls":4},115000,null,null,null,48300,48300]
[{"$nulls":5},"Belív 192 oldal                 Borító 4 oldal",{"$nulls":4},128800,null,null,null,57900,57900]
[{"$nulls":5},"Belív 216 oldal                 Borító 4 oldal",{"$nulls":4},139600,null,null,null,65100,65100]
[{"$nulls":5},"Belív 240 oldal                 Borító 4 oldal",{"$nulls":4},150400,null,null,null,72300,72300]
[{"$nulls":5},"Belív 272 oldal                 Borító 4 oldal",{"$nulls":4},164000,null,null,null,81900,81900]
[{"$nulls":5},"Belív 304 oldal                 Borító 4 oldal",{"$nulls":4},177600,null,null,null,91500,91500]
[{"$nulls":5},"8 oldalankénti felár 400 oldalig",{"$nulls":4},9000,null,null,null,4800,4800]
[null,null,"Borító 300 g/m2 műnyomó                        Belív 115 g/m2 műnyomó",null,"Borító 4+4          Belív 4+4","Belív 72 oldal                 Borító 4 oldal",{"$nulls":4},146250,null,null,null,21900,21900]
[{"$nulls":5},"Belív 96 oldal                 Borító 4 oldal",{"$nulls":4},184350,null,null,null,29100,29100]
[{"$nulls":5},"Belív 128 oldal                 Borító 4 oldal",{"$nulls":4},234900,null,null,null,38700,38700]
[{"$nulls":5},"Belív 160 oldal                 Borító 4 oldal",{"$nulls":4},285450,null,null,null,48300,48300]
[{"$nulls":5},"Belív 192 oldal                 Borító 4 oldal",{"$nulls":4},336150,null,null,null,57900,57900]
[{"$nulls":5},"Belív 216 oldal                 Borító 4 oldal",{"$nulls":4},374250,null,null,null,65100,65100]
[{"$nulls":5},"Belív 240 oldal                 Borító 4 oldal",{"$nulls":4},412350,null,null,null,72300,72300]
[{"$nulls":5},"Belív 272 oldal                 Borító 4 oldal",{"$nulls":4},462900,null,null,null,81900,81900]
[{"$nulls":5},"Belív 304 oldal                 Borító 4 oldal",{"$nulls":4},513450,null,null,null,91500,91500]
[{"$nulls":5},"8 oldalankénti felár 400 oldalig",{"$nulls":4},20800,null,null,null,4800,4800]
[null,null,"Borító 300 g/m2 műnyomó                        Belív 80 g/m2 ofszet","VB/5 mérettől függetlenül","Borító 4+4          Belív 1+1 (fekete)","Belív 72 oldal                 Borító 4 oldal",{"$nulls":4},99200,null,null,null,43800,43800]
[{"$nulls":5},"Belív 96 oldal                 Borító 4 oldal",{"$nulls":4},109000,null,null,null,58200,58200]
[{"$nulls":5},"Belív 128 oldal                 Borító 4 oldal",{"$nulls":4},124800,null,null,null,61920,61920]
[{"$nulls":5},"Belív 160 oldal                 Borító 4 oldal",{"$nulls":4},140600,null,null,null,77280,77280]
[{"$nulls":5},"Belív 192 oldal                 Borító 4 oldal",{"$nulls":4},156200,null,null,null,92640,92640]
[{"$nulls":5},"Belív 216 oldal                 Borító 4 oldal",{"$nulls":4},168400,null,null,null,91140,91140]
[{"$nulls":5},"Belív 240 oldal                 Borító 4 oldal",{"$nulls":4},180400,null,null,null,101220,101220]
[{"$nulls":5},"Belív 272 oldal                 Borító 4 oldal",{"$nulls":4},196000,null,null,null,106470,106470]
[{"$nulls":5},"Belív 304 oldal                 Borító 4 oldal",{"$nulls":4},211400,null,null,null,109800,109800]
[{"$nulls":5},"8 oldalankénti felár 400 oldalig",{"$nulls":4},9400,null,null,null,4800,4800]
[null,null,"Borító 300 g/m2 műnyomó                        Belív 115 g/m2 műnyomó",null,"Borító 4+4          Belív 4+4","Belív 72 oldal                 Borító 4 oldal",{"$nulls":4},200550,null,null,null,43800,43800]
[{"$nulls":5},"Belív 96 oldal                 Borító 4 oldal",{"$nulls":4},249000,null,null,null,58200,58200]
[{"$nulls":5},"Belív 128 oldal                 Borító 4 oldal",{"$nulls":4},312900,null,null,null,61920,61920]
[{"$nulls":5},"Belív 160 oldal                 Borító 4 oldal",{"$nulls":4},381900,null,null,null,77280,77280]
[{"$nulls":5},"Belív 192 oldal                 Borító 4 oldal",{"$nulls":4},447000,null,null,null,92640,92640]
[{"$nulls":5},"Belív 216 oldal                 Borító 4 oldal",{"$nulls":4},512700,null,null,null,91140,91140]
[{"$nulls":5},"Belív 240 oldal                 Borító 4 oldal",{"$nulls":4},550950,null,null,null,101220,101220]
[{"$nulls":5},"Belív 272 oldal                 Borító 4 oldal",{"$nulls":4},616050,null,null,null,106470,106470]
[{"$nulls":5},"Belív 304 oldal                 Borító 4 oldal",{"$nulls":4},681450,null,null,null,109800,109800]
[{"$nulls":5},"8 oldalankénti felár 400 oldalig",{"$nulls":4},27800,null,null,null,4800,4800]
[null,300,"Borító 300 g/m2 műnyomó                        Belív 80 g/m2 ofszet","A/5","Borító 4+4          Belív 1+1 (fekete)","Belív 72 oldal                 Borító 4 oldal","borító matt fóliázva","ragasztókötött",null,null,107700,null,null,null,21900,21900]
[{"$nulls":5},"Belív 96 oldal                 Borító 4 oldal",{"$nulls":4},123300,null,null,null,29100,29100]
[{"$nulls":5},"Belív 128 oldal                 Borító 4 oldal",{"$nulls":4},143700,null,null,null,38700,38700]
[{"$nulls":5},"Belív 160 oldal                 Borító 4 oldal",{"$nulls":4},162600,null,null,null,48300,48300]
[{"$nulls":5},"Belív 192 oldal                 Borító 4 oldal",{"$nulls":4},182400,null,null,null,57900,57900]
[{"$nulls":5},"Belív 216 oldal                 Borító 4 oldal",{"$nulls":4},197400,null,null,null,65100,65100]
[{"$nulls":5},"Belív 240 oldal                 Borító 4 oldal",{"$nulls":4},211800,null,null,null,72300,72300]
[{"$nulls":5},"Belív 272 oldal                 Borító 4 oldal",{"$nulls":4},230700,null,null,null,81900,81900]
[{"$nulls":5},"Belív 304 oldal                 Borító 4 oldal",{"$nulls":4},250200,null,null,null,91500,91500]
[{"$nulls":5},"8 oldalankénti felár 400 oldalig",{"$nulls":4},11100,null,null,null,4800,4800]
[null,null,"Borító 300 g/m2 műnyomó                        Belív 115 g/m2 műnyomó",null,"Borító 4+4          Belív 4+4","Belív 72 oldal                 Borító 4 oldal",{"$nulls":4},211950,null,null,null,21900,21900]
[{"$nulls":5},"Belív 96 oldal                 Borító 4 oldal",{"$nulls":4},247725,null,null,null,29100,29100]
[{"$nulls":5},"Belív 128 oldal                 Borító 4 oldal",{"$nulls":4},315900,null,null,null,38700,38700]
[{"$nulls":5},"Belív 160 oldal                 Borító 4 oldal",{"$nulls":4},380700,null,null,null,48300,48300]
[{"$nulls":5},"Belív 192 oldal                 Borító 4 oldal",{"$nulls":4},448875,null,null,null,57900,57900]
[{"$nulls":5},"Belív 216 oldal                 Borító 4 oldal",{"$nulls":4},510975,null,null,null,65100,65100]
[{"$nulls":5},"Belív 240 oldal                 Borító 4 oldal",{"$nulls":4},546750,null,null,null,72300,72300]
[{"$nulls":5},"Belív 272 oldal                 Borító 4 oldal",{"$nulls":4},612000,null,null,null,81900,81900]
[{"$nulls":5},"Belív 304 oldal                 Borító 4 oldal",{"$nulls":4},675000,null,null,null,91500,91500]
[{"$nulls":5},"8 oldalankénti felár 400 oldalig",{"$nulls":4},38700,null,null,null,4800,4800]
[null,null,"Borító 300 g/m2 műnyomó                        Belív 80 g/m2 ofszet","VB/5 mérettől függetlenül","Borító 4+4          Belív 1+1 (fekete)","Belív 72 oldal                 Borító 4 oldal",{"$nulls":4},120000,null,null,null,43800,43800]
[{"$nulls":5},"Belív 96 oldal                 Borító 4 oldal",{"$nulls":4},137100,null,null,null,58200,58200]
[{"$nulls":5},"Belív 128 oldal                 Borító 4 oldal",{"$nulls":4},159600,null,null,null,61920,61920]
[{"$nulls":5},"Belív 160 oldal                 Borító 4 oldal",{"$nulls":4},182100,null,null,null,77280,77280]
[{"$nulls":5},"Belív 192 oldal                 Borító 4 oldal",{"$nulls":4},203700,null,null,null,92640,92640]
[{"$nulls":5},"Belív 216 oldal                 Borító 4 oldal",{"$nulls":4},219300,null,null,null,91140,91140]
[{"$nulls":5},"Belív 240 oldal                 Borító 4 oldal",{"$nulls":4},234900,null,null,null,101220,101220]
[{"$nulls":5},"Belív 272 oldal                 Borító 4 oldal",{"$nulls":4},255600,null,null,null,106470,106470]
[{"$nulls":5},"Belív 304 oldal                 Borító 4 oldal",{"$nulls":4},276300,null,null,null,109800,109800]
[{"$nulls":5},"8 oldalankénti felár 400 oldalig",{"$nulls":4},11700,null,null,null,4800,4800]
[null,null,"Borító 300 g/m2 műnyomó                        Belív 115 g/m2 műnyomó",null,"Borító 4+4          Belív 4+4","Belív 72 oldal                 Borító 4 oldal",{"$nulls":4},226350,null,null,null,43800,43800]
[{"$nulls":5},"Belív 96 oldal                 Borító 4 oldal",{"$nulls":4},263925,null,null,null,58200,58200]
[{"$nulls":5},"Belív 128 oldal                 Borító 4 oldal",{"$nulls":4},336600,null,null,null,61920,61920]
[{"$nulls":5},"Belív 160 oldal                 Borító 4 oldal",{"$nulls":4},404550,null,null,null,77280,77280]
[{"$nulls":5},"Belív 192 oldal                 Borító 4 oldal",{"$nulls":4},472950,null,null,null,92640,92640]
[{"$nulls":5},"Belív 216 oldal                 Borító 4 oldal",{"$nulls":4},540675,null,null,null,91140,91140]
[{"$nulls":5},"Belív 240 oldal                 Borító 4 oldal",{"$nulls":4},579375,null,null,null,101220,101220]
[{"$nulls":5},"Belív 272 oldal                 Borító 4 oldal",{"$nulls":4},648000,null,null,null,106470,106470]
[{"$nulls":5},"Belív 304 oldal                 Borító 4 oldal",{"$nulls":4},717075,null,null,null,109800,109800]
[{"$nulls":5},"8 oldalankénti felár 400 oldalig",{"$nulls":4},38100,null,null,null,4800,4800]
[null,500,"Borító 300 g/m2 műnyomó                        Belív 80 g/m2 ofszet","A/5","Borító 4+4          Belív 1+1 (fekete)","Belív 72 oldal                 Borító 4 oldal","borító matt fóliázva","ragasztókötött",null,null,147000,null,null,null,21900,21900]
[{"$nulls":5},"Belív 96 oldal                 Borító 4 oldal",{"$nulls":4},171000,null,null,null,29100,29100]
[{"$nulls":5},"Belív 128 oldal                 Borító 4 oldal",{"$nulls":4},202000,null,null,null,38700,38700]
[{"$nulls":5},"Belív 160 oldal                 Borító 4 oldal",{"$nulls":4},232000,null,null,null,48300,48300]
[{"$nulls":5},"Belív 192 oldal                 Borító 4 oldal",{"$nulls":4},264500,null,null,null,57900,57900]
[{"$nulls":5},"Belív 216 oldal                 Borító 4 oldal",{"$nulls":4},288000,null,null,null,65100,65100]
[{"$nulls":5},"Belív 240 oldal                 Borító 4 oldal",{"$nulls":4},311500,null,null,null,72300,72300]
[{"$nulls":5},"Belív 272 oldal                 Borító 4 oldal",{"$nulls":4},343000,null,null,null,81900,81900]
[{"$nulls":5},"Belív 304 oldal                 Borító 4 oldal",{"$nulls":4},374000,null,null,null,91500,91500]
[{"$nulls":5},"8 oldalankénti felár 400 oldalig",{"$nulls":4},1500,null,null,null,4800,4800]
[null,null,"Borító 300 g/m2 műnyomó                        Belív 115 g/m2 műnyomó",null,"Borító 4+4          Belív 4+4","Belív 72 oldal                 Borító 4 oldal",{"$nulls":4},245625,null,null,null,21900,21900]
[{"$nulls":5},"Belív 96 oldal                 Borító 4 oldal",{"$nulls":4},288000,null,null,null,29100,29100]
[{"$nulls":5},"Belív 128 oldal                 Borító 4 oldal",{"$nulls":4},360000,null,null,null,38700,38700]
[{"$nulls":5},"Belív 160 oldal                 Borító 4 oldal",{"$nulls":4},431625,null,null,null,48300,48300]
[{"$nulls":5},"Belív 192 oldal                 Borító 4 oldal",{"$nulls":4},502875,null,null,null,57900,57900]
[{"$nulls":5},"Belív 216 oldal                 Borító 4 oldal",{"$nulls":4},575625,null,null,null,65100,65100]
[{"$nulls":5},"Belív 240 oldal                 Borító 4 oldal",{"$nulls":4},618750,null,null,null,72300,72300]
[{"$nulls":5},"Belív 272 oldal                 Borító 4 oldal",{"$nulls":4},692625,null,null,null,81900,81900]
[{"$nulls":5},"Belív 304 oldal                 Borító 4 oldal",{"$nulls":4},766125,null,null,null,91500,91500]
[{"$nulls":5},"8 oldalankénti felár 400 oldalig",{"$nulls":4},40000,null,null,null,4800,4800]
[null,null,"Borító 300 g/m2 műnyomó                        Belív 80 g/m2 ofszet","VB/5 mérettől függetlenül","Borító 4+4          Belív 1+1 (fekete)","Belív 72 oldal                 Borító 4 oldal",{"$nulls":4},177500,null,null,null,43800,43800]
[{"$nulls":5},"Belív 96 oldal                 Borító 4 oldal",{"$nulls":4},205000,null,null,null,58200,58200]
[{"$nulls":5},"Belív 128 oldal                 Borító 4 oldal",{"$nulls":4},241000,null,null,null,61920,61920]
[{"$nulls":5},"Belív 160 oldal                 Borító 4 oldal",{"$nulls":4},276000,null,null,null,77280,77280]
[{"$nulls":5},"Belív 192 oldal                 Borító 4 oldal",{"$nulls":4},311500,null,null,null,92640,92640]
[{"$nulls":5},"Belív 216 oldal                 Borító 4 oldal",{"$nulls":4},338500,null,null,null,91140,91140]
[{"$nulls":5},"Belív 240 oldal                 Borító 4 oldal",{"$nulls":4},366000,null,null,null,101220,101220]
[{"$nulls":5},"Belív 272 oldal                 Borító 4 oldal",{"$nulls":4},402000,null,null,null,106470,106470]
[{"$nulls":5},"Belív 304 oldal                 Borító 4 oldal",{"$nulls":4},438500,null,null,null,109800,109800]
[{"$nulls":5},"8 oldalankénti felár 400 oldalig",{"$nulls":4},16000,null,null,null,4800,4800]
[null,null,"Borító 300 g/m2 műnyomó                        Belív 115 g/m2 műnyomó",null,"Borító 4+4          Belív 4+4","Belív 72 oldal                 Borító 4 oldal",{"$nulls":4},265875,null,null,null,43800,43800]
[{"$nulls":5},"Belív 96 oldal                 Borító 4 oldal",{"$nulls":4},311625,null,null,null,58200,58200]
[{"$nulls":5},"Belív 128 oldal                 Borító 4 oldal",{"$nulls":4},389625,null,null,null,61920,61920]
[{"$nulls":5},"Belív 160 oldal                 Borító 4 oldal",{"$nulls":4},467250,null,null,null,77280,77280]
[{"$nulls":5},"Belív 192 oldal                 Borító 4 oldal",{"$nulls":4},545250,null,null,null,92640,92640]
[{"$nulls":5},"Belív 216 oldal                 Borító 4 oldal",{"$nulls":4},627000,null,null,null,91140,91140]
[{"$nulls":5},"Belív 240 oldal                 Borító 4 oldal",{"$nulls":4},670875,null,null,null,101220,101220]
[{"$nulls":5},"Belív 272 oldal                 Borító 4 oldal",{"$nulls":4},751500,null,null,null,106470,106470]
[{"$nulls":5},"Belív 304 oldal                 Borító 4 oldal",{"$nulls":4},832125,null,null,null,109800,109800]
[{"$nulls":5},"8 oldalankénti felár 400 oldalig",{"$nulls":4},40500,null,null,null,4800,4800]
[{"$nulls":10},{"$f":"SUM(K187:K346)","v":41209425},{"$f":"SUM(L187)","v":6000},{"$f":"SUM(M187)","v":12000},{"$f":"SUM(N187)","v":20000},{"$f":"SUM(O187:O346)","v":10070160},{"$f":"SUM(P187:P346)","v":10070160}]
[null,"mennyiség (db)","papírminőség","méret","szín","terjedelem (beoldal)","konfekcionálás",null,null,null,"Nyomdai kivitelezés díja (nettó Ft/össz. db)","Nyomdai előkészítés díja (nem nyomdai kompatibilis grafikai anyag esetén) (nettó Ft)","Egyszerű grafikai tervezés (borító + 1 oldalpár) pályázati arculat alapján 1 komplett tervvariáció díja (nettó Ft) ","Grafikai tervezés (borító + 1 oldalpár) egyéb arculat alapján 3 komplett tervvariáció díja (nettó Ft) ","Tördelés-szerkesztés egyszerű 2 elektronikus korrektúraforduló lebonyolításával (nettó Ft/össz. oldal)","Tördelés-szerkesztés összetett  2 elektronikus korrektúraforduló lebonyolításával (nettó Ft/össz. oldal)"]
["Kiadvány (3) ",100,"Bevonó: 150 g műnyomó, Előzék: 170 g ofszet, Belív: 80 g ofszet ","Könyvtest  B5 (pontos mérettől függetlenül)","Borító 4+0, Előzék: 4+0  Belív 1+1 (fekete)","120 old","borító matt fóliázva, cérnafűzve, borító keménytáblába kötve",null,null,null,254000,10000,18000,25000,36000,36000]
[{"$nulls":5},"168 old",{"$nulls":4},273300,null,null,null,50400,50400]
[{"$nulls":5},"192 old",{"$nulls":4},287600,null,null,null,57600,57600]
[{"$nulls":5},"264 old",{"$nulls":4},335600,null,null,null,79200,79200]
[{"$nulls":5},"312 old",{"$nulls":4},355200,null,null,null,93600,93600]
[{"$nulls":5},"416 old",{"$nulls":4},413100,null,null,null,99840,99840]
[{"$nulls":5},"8 oldalankénti felár a fenti sorok oldalszámától való pozitív eltérés esetén 600 oldalig",{"$nulls":4},18400,null,null,null,4800,4800]
[null,null,"Bevonó: 150 g műnyomó, Előzék: 170 g ofszet, Belív: 130 g műnyomó","Könyvtest  B5 (pontos mérettől függetlenül)","Borító 4+0, Előzék: 4+0  Belív 4+4","120 old",{"$nulls":4},361500,null,null,null,36000,36000]
[{"$nulls":5},"168 old",{"$nulls":4},425900,null,null,null,50400,50400]
[{"$nulls":5},"192 old",{"$nulls":4},458100,null,null,null,57600,57600]
[{"$nulls":5},"264 old",{"$nulls":4},556000,null,null,null,79200,79200]
[{"$nulls":5},"312 old",{"$nulls":4},621600,null,null,null,93600,93600]
[{"$nulls":5},"416 old",{"$nulls":4},768600,null,null,null,99840,99840]
[{"$nulls":5},"8 oldalankénti felár a fenti sorok oldalszámától való pozitív eltérés esetén 600 oldalig",{"$nulls":4},37500,null,null,null,4800,4800]
[null,150,"Bevonó: 150 g műnyomó, Előzék: 170 g ofszet, Belív: 80 g ofszet ","Könyvtest  B5 (pontos mérettől függetlenül)","Borító 4+0, Előzék: 4+0  Belív 1+1 (fekete)","120 old","borító matt fóliázva, cérnafűzve, borító keménytáblába kötve",null,null,null,302250,null,null,null,36000,36000]
[{"$nulls":5},"168 old",{"$nulls":4},339300,null,null,null,50400,50400]
[{"$nulls":5},"192 old",{"$nulls":4},359550,null,null,null,57600,57600]
[{"$nulls":5},"264 old",{"$nulls":4},418050,null,null,null,79200,79200]
[{"$nulls":5},"312 old",{"$nulls":4},456150,null,null,null,93600,93600]
[{"$nulls":5},"416 old",{"$nulls":4},537150,null,null,null,99840,99840]
[{"$nulls":5},"8 oldalankénti felár a fenti sorok oldalszámától való pozitív eltérés esetén 600 oldalig",{"$nulls":4},15900,null,null,null,4800,4800]
[null,null,"Bevonó: 150 g műnyomó, Előzék: 170 g ofszet, Belív: 130 g műnyomó","Könyvtest  B5 (pontos mérettől függetlenül)","Borító 4+0, Előzék: 4+0  Belív 4+4","120 old",{"$nulls":4},455250,null,null,null,36000,36000]
[{"$nulls":5},"168 old",{"$nulls":4},547800,null,null,null,50400,50400]
[{"$nulls":5},"192 old",{"$nulls":4},594600,null,null,null,57600,57600]
[{"$nulls":5},"264 old",{"$nulls":4},736200,null,null,null,79200,79200]
[{"$nulls":5},"312 old",{"$nulls":4},829800,null,null,null,93600,93600]
[{"$nulls":5},"416 old",{"$nulls":4},1032150,null,null,null,99840,99840]
[{"$nulls":5},"8 oldalankénti felár a fenti sorok oldalszámától való pozitív eltérés esetén 600 oldalig",{"$nulls":4},38700,null,null,null,4800,4800]
[null,200,"Bevonó: 150 g műnyomó, Előzék: 170 g ofszet, Belív: 80 g ofszet ","Könyvtest  B5 (pontos mérettől függetlenül)","Borító 4+0, Előzék: 4+0  Belív 1+1 (fekete)","120 old","borító matt fóliázva, cérnafűzve, borító keménytáblába kötve",null,null,null,350800,null,null,null,36000,36000]
[{"$nulls":5},"168 old",{"$nulls":4},401200,null,null,null,50400,50400]
[{"$nulls":5},"192 old",{"$nulls":4},425000,null,null,null,57600,57600]
[{"$nulls":5},"264 old",{"$nulls":4},501400,null,null,null,79200,79200]
[{"$nulls":5},"312 old",{"$nulls":4},551400,null,null,null,93600,93600]
[{"$nulls":5},"416 old",{"$nulls":4},658600,null,null,null,99840,99840]
[{"$nulls":5},"8 oldalankénti felár a fenti sorok oldalszámától való pozitív eltérés esetén 600 oldalig",{"$nulls":4},18200,null,null,null,4800,4800]
[null,null,"Bevonó: 150 g műnyomó, Előzék: 170 g ofszet, Belív: 130 g műnyomó","Könyvtest  B5 (pontos mérettől függetlenül)","Borító 4+0, Előzék: 4+0  Belív 4+4","120 old",{"$nulls":4},544200,null,null,null,36000,36000]
[{"$nulls":5},"168 old",{"$nulls":4},666600,null,null,null,50400,50400]
[{"$nulls":5},"192 old",{"$nulls":4},726800,null,null,null,57600,57600]
[{"$nulls":5},"264 old",{"$nulls":4},910800,null,null,null,79200,79200]
[{"$nulls":5},"312 old",{"$nulls":4},1032400,null,null,null,93600,93600]
[{"$nulls":5},"416 old",{"$nulls":4},1297600,null,null,null,99840,99840]
[{"$nulls":5},"8 oldalankénti felár a fenti sorok oldalszámától való pozitív eltérés esetén 600 oldalig",{"$nulls":4},41400,null,null,null,4800,4800]
[null,300,"Bevonó: 150 g műnyomó, Előzék: 170 g ofszet, Belív: 80 g ofszet ","Könyvtest  B5 (pontos mérettől függetlenül)","Borító 4+0, Előzék: 4+0  Belív 1+1 (fekete)","120 old","borító matt fóliázva, cérnafűzve, borító keménytáblába kötve",null,null,null,448200,null,null,null,36000,36000]
[{"$nulls":5},"168 old",{"$nulls":4},510300,null,null,null,50400,50400]
[{"$nulls":5},"192 old",{"$nulls":4},507300,null,null,null,57600,57600]
[{"$nulls":5},"264 old",{"$nulls":4},633900,null,null,null,79200,79200]
[{"$nulls":5},"312 old",{"$nulls":4},710100,null,null,null,93600,93600]
[{"$nulls":5},"416 old",{"$nulls":4},812400,null,null,null,99840,99840]
[{"$nulls":5},"8 oldalankénti felár a fenti sorok oldalszámától való pozitív eltérés esetén 600 oldalig",{"$nulls":4},19500,null,null,null,4800,4800]
[null,null,"Bevonó: 150 g műnyomó, Előzék: 170 g ofszet, Belív: 130 g műnyomó","Könyvtest  B5 (pontos mérettől függetlenül)","Borító 4+0, Előzék: 4+0  Belív 4+4","120 old",{"$nulls":4},663000,null,null,null,36000,36000]
[{"$nulls":5},"168 old",{"$nulls":4},811800,null,null,null,50400,50400]
[{"$nulls":5},"192 old",{"$nulls":4},873000,null,null,null,57600,57600]
[{"$nulls":5},"264 old",{"$nulls":4},1129200,null,null,null,79200,79200]
[{"$nulls":5},"312 old",{"$nulls":4},1305900,null,null,null,93600,93600]
[{"$nulls":5},"416 old",{"$nulls":4},1633500,null,null,null,99840,99840]
[{"$nulls":5},"8 oldalankénti felár a fenti sorok oldalszámától való pozitív eltérés esetén 600 oldalig",{"$nulls":4},45300,null,null,null,4800,4800]
[{"$nulls":10},{"$f":"SUM(K180:K404)","v":131313574},{"$f":"SUM(L349)","v":10000},{"$f":"SUM(M349)","v":18000},{"$f":"SUM(N349)","v":25000},{"$f":"SUM(O349:O404)","v":3371520},{"$f":"SUM(P349:P404)","v":3371520}]
["Speciális kiadványok","mennyiség (db)","papírminőség","méret","szín","terjedelem","kötészet",null,null,null,"Nyomdai kivitelezés díja (nettó Ft/össz. db)","Nyomdai előkészítés díja (ppt vagy egyéb nem nyomdai kompatibilis grafikai anyag esetén) (nettó Ft)","Egyszerű grafikai tervezés (borító + 1 oldalpár) pályázati arculat alapján 1 komplett tervvariáció díja (nettó Ft) ","Grafikai tervezés (borító + 1 oldalpár) egyéb arculat alapján 3 komplett tervvariáció díja (nettó Ft) ","Tördelés-szerkesztés egyszerű 2 elektronikus korrektúraforduló lebonyolításával (nettó Ft/össz. oldal)","Tördelés-szerkesztés összetett  2 elektronikus korrektúraforduló lebonyolításával (nettó Ft/össz. oldal)"]
["Speciális kiadvány 1",300,"Borító 300 g/m2 ofszet Belív 80 g/m2 ofszet","160*240","Borító 2+0        Belív 1+1 (fekete)","bor+112 old","irkafűzve, fülesborító",null,null,null,231600,2000,5000,8000,78400,78400]
[null,400,{"$nulls":8},282000]
[null,500,{"$nulls":8},333500]
[null,300,null,null,null,"8 oldalankénti felár a fenti sor oldalszámától való pozitív eltérés esetén 152 oldalig",{"$nulls":4},17700,null,null,null,5600,5600]
[null,400,{"$nulls":8},21200]
[null,500,{"$nulls":8},24500]
["Speciális kiadvány 2",300,"bor: 300 g műnyomó, belív: 170 g műnyomó, hátlap 300 g enso","420*297 mm","4+4","bor+12 old+hátlap","fehér fém ikerspirállal spirálozva, akasztóval ellátva, lakkozva végig",null,null,null,409800,2000,5000,15000,10000,10000]
[null,500,{"$nulls":8},451000]
["Speciális kiadvány 3",5000,"bor: 250 g műnyomó, belív: 80 g műnyomó,","A/5","4+4","Bor+64 old","irkafűzve",null,null,null,790000,2000,18000,25000,22400,22400]
[{"$nulls":5}," Bor+84 old",{"$nulls":4},1018500,null,null,null,29400,29400]
[{"$nulls":5},"8 oldalankénti felár a fenti sor oldalszámától való pozitív eltérés esetén 84 oldalig",{"$nulls":4},88000,null,null,null,5600,5600]
["Speciális kiadvány 4",3000,"bor: 200 g műnyomó, belív: 80  g műnyomó","A/4","4+4","bor+32old","irkafűzve, borító matt fóliázva",null,null,null,567000,2000,18000,25000,21700,21700]
[null,6000,{"$nulls":8},978000]
[null,3000,null,null,null,"8 oldalankénti felár a fenti sor oldalszámától való pozitív eltérés esetén 80 oldalig",{"$nulls":4},102900,null,null,null,5600,5600]
[null,6000,{"$nulls":8},172200]
["Speciális kiadvány 5",1000,"bor: 250 g matt, belív: 90 g matt","A/4","4+4","bor+24 old","irkafűzve, borító matt fóliázva",null,null,null,272600,2000,18000,25000,14700,14700]
[null,2000,{"$nulls":8},401200]
[null,1000,null,null,null,"8 oldalankénti felár a fenti sor oldalszámától való pozitív eltérés esetén 48 oldalig",{"$nulls":4},61400,null,null,null,5600,5600]
[null,2000,{"$nulls":8},85600]
[]
["Speciális kiadvány 6",5000,"Borító 300 g/m2 műnyomó                        Belív 80 g/m2 ofszet","200*200 mm","Borító 4+4          Belív 4+4","Belív 68 oldal                 Borító 4 oldal","borító matt fóliázva, UV lakkozva, ragasztókötve",null,null,null,978900,2000,18000,25000,48300,48300]
[null,8000,{"$nulls":8},1265600]
[null,5000,null,null,null,"8 oldalankénti felár a fenti sor oldalszámától való pozitív eltérés esetén 84 oldalig",null,null," ",null,155000,null,null,null,5600,5600]
[null,8000,{"$nulls":6}," ",null,229600,null,null,null,5600,5600]
[null,5000,null,"165*235 mm",null,"Belív 68 oldal                 Borító 4 oldal",null,null," ",null,955500,null,null,null,48300,48300]
[null,8000,{"$nulls":8},1332000]
[null,5000,null,null,null,"8 oldalankénti felár a fenti sor oldalszámától való pozitív eltérés esetén 84 oldalig",{"$nulls":4},103000,null,null,null,5600,5600]
[null,8000,{"$nulls":8},146400,null,null,null,56000,56000]
["Speciális kiadvány 7",2000,"Borító: 250 g műnyomó Belív: 115 g műnyomó","200*260 mm","4+4","Bor: 4 old,             Belív: 64 old","borító bársonymatt fóliázva, 3 DUV, ragasztókötve",null,null,null,1024000,2000,18000,25000,45500,45500]
[{"$nulls":10},{"$f":"SUM(K407:K435)","v":12498700},14000,100000,148000,413900,413900]
[null,"mennyiség (db)","papírminőség","méret","szín","terjedelem","konfekcionálás","kötészet",null,null,"Nyomdai kivitelezés díja (nettó Ft/db)","Nyomdai előkészítés díja (ppt vagy egyéb nem nyomdai kompatibilis grafikai anyag esetén) (nettó Ft)","Egyszerű gafikai tervezés, szerkesztés díja (pályázati arculat alapján 1 komplett tervvariáció) (nettó Ft)","Grafikai tervezés, szerkesztés díja (egyéb arculat alapján 3 komplett tervvariáció) (nettó Ft)"]
["Mappa ","20-tól 50-ig","350 g műnyomó","A4 kiadványt befogadó kiterített méret 45 cm széles, 31 cm magas, alsó lehajtható rész 6 cm, 5 mm-es gerinccel, alul-felül stancolt füllel stancolt névjegytartóval, vagy a megadott mérethez hasonló méret +-1 cm eltéréssel. A stancformát a cégnek kell biztosítani","4+0","2 old","fóliázva matt fóliával","A mappákat kiterített állapotban kérjük szállítani",null,null,3805,6000,10000,18000]
[{"$nulls":4},"4+4",null,"fóliázva matt fóliával + UV lakk 1 oldalon",null,null," ",5361]
[null,"51-200-ig","350 g műnyomó","A4 kiadványt befogadó kiterített méret 45 cm széles, 31 cm magas, alsó lehajtható rész 6 cm, 5 mm-es gerinccel, alul-felül stancolt füllel stancolt névjegytartóval, vagy a megadott mérethez hasonló méret +-1 cm eltéréssel. A stancformát a cégnek kell biztosítani","4+0","2 old","fóliázva matt fóliával","A mappákat kiterített állapotban kérjük szállítani",null,null,1573]
[{"$nulls":4},"4+4",null,"fóliázva matt fóliával + UV lakk 1 oldalon",null,null,null,2297]
[null,"201-500-ig","350 g műnyomó","A4 kiadványt befogadó kiterített méret 45 cm széles, 31 cm magas, alsó lehajtható rész 6 cm, 5 mm-es gerinccel, alul-felül stancolt füllel stancolt névjegytartóval, vagy a megadott mérethez hasonló méret +-1 cm eltéréssel. A stancformát a cégnek kell biztosítani","4+0","2 old","fóliázva matt fóliával","A mappákat kiterített állapotban kérjük szállítani",null,null,472]
[{"$nulls":4},"4+4",null,"fóliázva matt fóliával + UV lakk 1 oldalon",null,null,null,696]
[null,"501-1000-ig","350 g műnyomó","A4 kiadványt befogadó kiterített méret 45 cm széles, 31 cm magas, alsó lehajtható rész 6 cm, 5 mm-es gerinccel, alul-felül stancolt füllel stancolt névjegytartóval, vagy a megadott mérethez hasonló méret +-1 cm eltéréssel. A stancformát a cégnek kell biztosítani","4+0","2 old","fóliázva matt fóliával","A mappákat kiterített állapotban kérjük szállítani",null,null,250]
[{"$nulls":4},"4+4",null,"fóliázva matt fóliával + UV lakk 1 oldalon",null,null,null,397]
[{"$nulls":10},{"$f":"SUM(K438:K445)","v":14851},{"$f":"SUM(L438)","v":6000},{"$f":"SUM(M438)","v":10000},{"$f":"SUM(N438)","v":18000}]
[null,"mennyiség (db)","papírminőség","méret","szín","terjedelem","kötészet",null,null,null,"Nyomdai kivitelezés díja (nettó Ft/db)","Nyomdai előkészítés díja (ppt vagy egyéb nem nyomdai kompatibilis grafikai anyag esetén) (nettó Ft)","Tördelés-szerkesztés egyszerű kapott forrásanyag alapján (nettó Ft/össz. oldal)","Tördelés-szerkesztés bonyolult kapott forrásanyag alapján (nettó Ft/össz. oldal)"]
["Technikai nyomtatvány","20-tól 250-ig","80 g/m2 ofszet papír","A4","1+1 fekete","2 oldal","_____",null,null,null,312,3000,6000,6000]
[null,"251-től 550-ig",{"$nulls":8},35]
[null,"551-tól 1050-ig",{"$nulls":8},22]
[null,"1051-től 2050-ig",{"$nulls":8},15.8]
[null,"2051-től 3050-ig",{"$nulls":8},12.4]
[null,"20-tól 250-ig","80 g/m2 ofszet papír","A4","1+1 fekete","4 oldal","egyszer hajtva",null,null,null,378,null,8000,8000]
[null,"251-től 550-ig",{"$nulls":8},55]
[null,"551-tól 1050-ig",{"$nulls":8},38]
[null,"1051-től 2050-ig",{"$nulls":8},30.1]
[null,"2051-től 3050-ig",{"$nulls":8},22.5]
[{"$nulls":10},{"$f":"SUM(K448:K457)","v":920.80000000000007},{"$f":"SUM(L448)","v":3000},{"$f":"SUM(M448:M457)","v":14000},{"$f":"SUM(N448:N457)","v":14000}]
[null,"mennyiség (db)","papírminőség","méret","szín","kötészet",{"$nulls":4},"Nyomdai kivitelezés díja (nettó Ft/db)","Nyomdai előkészítés díja (ppt vagy egyéb nem nyomdai kompatibilis grafikai anyag esetén) (nettó Ft)","Egyszerű gafikai tervezés, szerkesztés díja (pályázati arculat alapján 1 komplett tervvariáció) (nettó Ft)","Grafikai tervezés, szerkesztés díja (egyéb arculat alapján 3 komplett tervvariáció) (nettó Ft)"]
["Leporelló","50-től 250-ig","150 g/m2 műnyomó","A4 két oldalas","4+4","kétszer hajtva",{"$nulls":4},277,5000,12000,15000]
[null,null,null,"A5 két oldalas",null,"hajtva",{"$nulls":4},247]
[null,"251-től 550-ig",null,"A4 két oldalas",null,"kétszer hajtva",{"$nulls":4},83]
[null,null,null,"A5 két oldalas",null,"hajtva",{"$nulls":4},66]
[null,"551-től 1050-ig",null,"A4 két oldalas",null,"kétszer hajtva",{"$nulls":4},60]
[null,null,null,"A5 két oldalas",null,"hajtva",{"$nulls":4},42.6]
[null,"1051-től 2050-ig",null,"A4 két oldalas",null,"kétszer hajtva",{"$nulls":4},37.700000000000003]
[null,null,null,"A5 két oldalas",null,"hajtva",{"$nulls":4},30.4]
[null,"2051-től 3050-ig",null,"A4 két oldalas",null,"kétszer hajtva",{"$nulls":4},23.9]
[null,null,null,"A5 két oldalas",null,"hajtva",{"$nulls":4},19.3]
[{"$nulls":10},{"$f":"SUM(K460:K469)","v":886.9},{"$f":"SUM(L460)","v":5000},{"$f":"SUM(M460)","v":12000},{"$f":"SUM(N460)","v":15000}]
[null,"mennyiség (db)","papírminőség","méret","szín","kötészet",{"$nulls":4},"Nyomdai kivitelezés díja (nettó Ft/db)","Nyomdai előkészítés díja (ppt vagy egyéb nem nyomdai kompatibilis grafikai anyag esetén) (nettó Ft)","szerkesztés meglévő arculat alapján nevenként (nettó Ft)"]
["Névjegykártya","50-től 200-ig","350 g/m2 műnyomó","90*50 mm","4+0","vágva",{"$nulls":4},162,2000,2500]
[{"$nulls":4},"4+4",{"$nulls":5},167]
[null,"201-től 500-ig",null,null,"4+0",{"$nulls":5},47]
[{"$nulls":4},"4+4",{"$nulls":5},49]
[null,"501-től 1000-ig",null,null,"4+0",{"$nulls":5},23]
[{"$nulls":4},"4+4",{"$nulls":5},24,null,null,"db * függetlenül attól, hogy hányféle névjegykártya gyártódik egyszerre"]
[null,"1001-től 1500-ig",null,null,"4+0",{"$nulls":5},16]
[{"$nulls":4},"4+4",{"$nulls":5},17.399999999999999]
[null,"1501-től 2000-ig",null,null,"4+0",{"$nulls":5},13]
[{"$nulls":4},"4+4",{"$nulls":5},14]
[null,"50-től 200-ig","350 g/m2 műnyomó","90*50 mm","4+0","2 oldalon matt fóliázva, vágva",{"$nulls":4},208]
[{"$nulls":4},"4+4",{"$nulls":5},216]
[null,"201-től 500-ig",null,null,"4+0",{"$nulls":5},58]
[{"$nulls":4},"4+4",{"$nulls":5},61]
[null,"501-től 1000-ig",null,null,"4+0",{"$nulls":5},30,null,null,"db * függetlenül attól, hogy hányféle névjegykártya gyártódik egyszerre"]
[{"$nulls":4},"4+4",{"$nulls":5},32]
[null,"1001-től 1500-ig",null,null,"4+0",{"$nulls":5},21.7]
[{"$nulls":4},"4+4",{"$nulls":5},23]
[null,"1501-től 2000-ig",null,null,"4+0",null," ",null,null,null,17.7]
[{"$nulls":4},"4+4",{"$nulls":5},18]
[null,"50-től 200-ig","250 g/m2 rives tradition","90*50 mm (ofszet nyomtatással)","2+0","vágva",{"$nulls":4},1533]
[{"$nulls":4},"2+2",{"$nulls":5},1637]
[null,"201-től 500-ig",null,null,"2+0",{"$nulls":5},391,null,null,"db * függetlenül attól, hogy hányféle névjegykártya gyártódik egyszerre"]
[{"$nulls":4},"2+2",{"$nulls":5},417]
[{"$nulls":10},{"$f":"SUM(K472:K495)","v":5195.8},{"$f":"SUM(L472)","v":2000},{"$f":"SUM(M472)","v":2500}]
[null,"mennyiség (db)","papírminőség","méret","szín","konfekcionálás","fül",null,null,null,"Nyomdai kivitelezés díja (nettó Ft/db)","Nyomdai előkészítés díja (ppt vagy egyéb nem nyomdai kompatibilis grafikai anyag esetén (nettó Ft)","Egyszerű gafikai tervezés, szerkesztés díja (1 komplett tervvariáció) (nettó Ft)"]
["Papírtáska","50-től 500-ig","200 g/m2 műnyomó","250*340*110 mm","4+0","egy oldal fényes fólia, stancolva, beigelve, összeállítva","standard",null,null,null,3137,4000,6000]
[null,"501-től 800-ig",{"$nulls":8},695]
[null,"801-től 1000-ig",{"$nulls":8},599]
[{"$nulls":10},{"$f":"SUM(K498:K500)","v":4431},{"$f":"SUM(L498)","v":4000},{"$f":"SUM(M498)","v":6000}]
[null,"mennyiség (db)","papírminőség","méret","szín","terjedelem","kötészet",null,null,null,"Nyomdai kivitelezés díja (nettó Ft/össz. db)","Nyomdai előkészítés díja (ppt vagy egyéb nem nyomdai kompatibilis grafikai anyag esetén (nettó Ft)","Egyszerű gafikai tervezés, szerkesztés díja (1 komplett tervvariáció) (nettó Ft)"]
["Jegyzettömb",50,"80 g/m2 ofszet+300 g fehér karton","A/4","4+0","20 lap+hátlap","enyvezve",null,null,null,37700,4000,6000]
[{"$nulls":5},"30 lap+hátlap","enyvezve",null,null,null,39600]
[null,null,null,"A/5","4+0","20 lap+hátlap","enyvezve",null,null,null,34450]
[{"$nulls":5},"30 lap+hátlap","enyvezve",null,null,null,35350]
[null,100,"80 g/m2 ofszet+300 g fehér karton","A/4","4+0","20 lap+hátlap","enyvezve",null,null,null,42700]
[{"$nulls":5},"30 lap+hátlap","enyvezve",null,null,null,47900]
[null,null,null,"A/5","4+0","20 lap+hátlap","enyvezve",null,null,null,37300]
[{"$nulls":5},"30 lap+hátlap","enyvezve",null,null,null,39100]
[null,300,"80 g/m2 ofszet+300 g fehér karton","A/4","4+0","20 lap+hátlap","enyvezve",null,null,null,71700]
[{"$nulls":5},"30 lap+hátlap","enyvezve",null,null,null,88800]
[null,null,null,"A/5","4+0","20 lap+hátlap","enyvezve",null,null,null,51600]
[{"$nulls":5},"30 lap+hátlap","enyvezve",null,null,null,60300]
[null,500,"80 g/m2 ofszet+300 g fehér karton","A/4","4+0","20 lap+hátlap","enyvezve",null,null,null,102000]
[{"$nulls":5},"30 lap+hátlap","enyvezve",null,null,null,127000]
[null,null,null,"A/5","4+0","20 lap+hátlap","enyvezve",null,null,null,69500]
[{"$nulls":5},"30 lap+hátlap","enyvezve",null,null,null,83500]
[null,1000,"80 g/m2 ofszet+300 g fehér karton","A/4","4+0","20 lap+hátlap","enyvezve",null,null,null,174000]
[{"$nulls":5},"30 lap+hátlap","enyvezve",null,null,null,225000]
[null,null,null,"A/5","4+0","20 lap+hátlap","enyvezve",null,null,null,111000]
[{"$nulls":5},"30 lap+hátlap","enyvezve",null,null,null,136000]
[{"$nulls":10},{"$f":"SUM(K503:K522)","v":1614500},{"$f":"SUM(L503)","v":4000},{"$f":"SUM(M503)","v":6000}]
[null,"mennyiség (db)","papírminőség","méret","szín",{"$nulls":5},"Nyomdai kivitelezés díja (nettó Ft/db)","Nyomdai előkészítés díja (ppt vagy egyéb nem nyomdai kompatibilis grafikai anyag esetén (nettó Ft)","Egyszerű gafikai tervezés, szerkesztés díja (pályázati arculat alapján 1 komplett tervvariáció) (nettó Ft)","Grafikai tervezés, szerkesztés díja (egyéb arculat alapján 3 komplett tervvariáció) (nettó Ft)"]
["Oklevél","5-től 50-ig","300 g/m2 műnyomó","A4","4+0",{"$nulls":5},1666,2000,4000,8000]
[null,"51-től 200-ig",{"$nulls":8},236]
[null,"201-től 500-ig",{"$nulls":8},98]
[null,"5-től 50-ig","250 g Rives tradition ","A4","4+0",{"$nulls":5},2064]
[null,"51-től 200-ig",{"$nulls":8},400]
[null,"201-től 500-ig",{"$nulls":8},218]
[{"$nulls":10},{"$f":"SUM(K525:K530)","v":4682},{"$f":"SUM(L525)","v":2000},{"$f":"SUM(M525)","v":4000},{"$f":"SUM(N525)","v":8000}]
[null,"mennyiség (db)","papírminőség","méret","szín","kivitel",{"$nulls":4},"Nyomdai kivitelezés díja (nettó Ft/db)","Nyomdai előkészítés díja (ppt vagy egyéb nem nyomdai kompatibilis grafikai anyag esetén (nettó Ft)","Minimális szöveg szerkesztés, tördelés díja (nettó Ft)"]
["Személyi iratgyűjtő tasak","50-től 200-ig","190 g/m2 fehér karton","Kiterített méret: 45*31 cm","elülső oldal 1 (fekete) színnel nyomva","egyszer hajtva, 3 oldalon (alul, felül és a hajtott oldalon) 3 cm széles, kék színű „szövet szerű” csíkkal ragasztva",{"$nulls":4},1013,2500,5500]
[null,"201-től 500-ig",{"$nulls":8},687]
[null,"501-től 1000-ig",{"$nulls":8},618]
[{"$nulls":10},{"$f":"SUM(K533:K535)","v":2318},{"$f":"SUM(L533)","v":2500},{"$f":"SUM(M533)","v":5500}]
[null,"mennyiség (db)","papírminőség","méret","szín",{"$nulls":5},"Nyomdai kivitelezés díja (nettó Ft/db)","Nyomdai előkészítés díja (ppt vagy egyéb nem nyomdai kompatibilis grafikai anyag esetén (nettó Ft)","Egyszerű gafikai tervezés, szerkesztés díja (pályázati arculat alapján 1 komplett tervvariáció) (nettó Ft)","Gafikai tervezés, szerkesztés díja (egyéb arculat alapján 3 komplett tervvariáció) (nettó Ft)"]
["Szórólap","50-200","90 g/m2 ofszet","A4","4+0",{"$nulls":5},198,5000,10000,15000]
[null,null,null,"A4","4+4",{"$nulls":5},217]
[null,null,null,"A5","4+0",{"$nulls":5},190]
[null,null,null,"A5","4+4",{"$nulls":5},201]
[null,null,"130 g/m2 matt műnyomó","A4","4+0",{"$nulls":5},200]
[null,null,null,"A4","4+4",{"$nulls":5},219]
[null,null,null,"A5","4+0",{"$nulls":5},191]
[null,null,null,"A5","4+4",{"$nulls":5},188]
[null,"201-500","90 g/m2 ofszet","A4","4+0",{"$nulls":5},74]
[null,null,null,"A4","4+4",{"$nulls":5},79]
[null,null,null,"A5","4+0",{"$nulls":5},66]
[null,null,null,"A5","4+4",{"$nulls":5},69]
[null,null,"130 g/m2 matt műnyomó","A4","4+0",{"$nulls":5},76]
[null,null,null,"A4","4+4",{"$nulls":5},81]
[null,null,null,"A5","4+0",{"$nulls":5},67]
[null,null,null,"A5","4+4",{"$nulls":5},66]
[null,"501-1000","90 g/m2 ofszet","A4","4+0",{"$nulls":5},40]
[null,null,null,"A4","4+4",{"$nulls":5},51]
[null,null,null,"A5","4+0",{"$nulls":5},36]
[null,null,null,"A5","4+4",{"$nulls":5},38]
[null,null,"130 g/m2 matt műnyomó","A4","4+0",{"$nulls":5},42]
[null,null,null,"A4","4+4",{"$nulls":5},52]
[null,null,null,"A5","4+0",{"$nulls":5},37]
[null,null,null,"A5","4+4",{"$nulls":5},36]
[{"$nulls":10},{"$f":"SUM(K538:K561)","v":2514},{"$f":"SUM(L538)","v":5000},{"$f":"SUM(M538)","v":10000},{"$f":"SUM(N538)","v":15000}]
[null,"mennyiség (db)","papírminőség","méret","szín","terjedelem","kötészet",null,null,null,"Nyomdai kivitelezés díja (nettó Ft/össz. db)","Nyomdai előkészítés díja (ppt vagy egyéb nem nyomdai kompatibilis grafikai anyag esetén (nettó Ft)","Egyszerű gafikai tervezés, szerkesztés díja (1 komplett tervvariáció) (nettó Ft)"]
["Fogászati karton",1000,"170 g/m2 ofszet","A4","1+1 fekete","2 oldal","vágva",null,null,null,24000,2000,3000]
[null,5000,{"$nulls":8},74500]
[null,9000,{"$nulls":8},121500]
[{"$nulls":10},{"$f":"SUM(K564:K566)","v":220000},{"$f":"SUM(L564)","v":2000},{"$f":"SUM(M564)","v":3000}]
[null,"mennyiség (db)","papírminőség","méret","szín","terjedelem","kötészet",null,null,null,"Nyomdai kivitelezés díja (nettó Ft/össz. db)","Nyomdai előkészítés díja (ppt vagy egyéb nem nyomdai kompatibilis grafikai anyag esetén (nettó Ft)","Egyszerű gafikai tervezés, szerkesztés díja (1 komplett tervvariáció) (nettó Ft)"]
["Paradontológiai karton (1), Onkológiai kórlap",500,"170 g/m2 ofszet","A4","1+1 fekete","4 oldal","vágva",null,null,null,29500,2000,3000]
[null,1000,{"$nulls":8},48900]
[null,1500,{"$nulls":8},65700]
[{"$nulls":10},{"$f":"SUM(K569:K571)","v":144100},{"$f":"SUM(L569)","v":2000},{"$f":"SUM(M569)","v":3000}]
[null,"mennyiség (db)","papírminőség","méret","szín","terjedelem","kötészet",null,null,null,"Nyomdai kivitelezés díja (nettó Ft/össz. db)","Nyomdai előkészítés díja (ppt vagy egyéb nem nyomdai kompatibilis grafikai anyag esetén (nettó Ft)","Egyszerű gafikai tervezés, szerkesztés díja (1 komplett tervvariáció) (nettó Ft)"]
["Fogászati törzslap",500,"170 g/m2 ofszet","240*210 mm","1+1 fekete","2 oldal","vágva",null,null,null,14500,2000,3000]
[null,1000,{"$nulls":8},21900]
[null,1500,{"$nulls":8},28950]
[null,2000,{"$nulls":8},35600]
[null,2500,{"$nulls":8},43750]
[{"$nulls":10},{"$f":"SUM(K574:K578)","v":144700},{"$f":"SUM(L574)","v":2000},{"$f":"SUM(M574)","v":3000}]
[null,"mennyiség (db)","papírminőség","méret","szín","terjedelem","kötészet",null,null,null,"Nyomdai kivitelezés díja (nettó Ft/össz. db)","Nyomdai előkészítés díja (ppt vagy egyéb nem nyomdai kompatibilis grafikai anyag esetén (nettó Ft)","Egyszerű gafikai tervezés, szerkesztés díja (1 komplett tervvariáció) (nettó Ft)"]
["Leckefüzet (1)",50,"170 g/m2 ofszet","210*148 mm","1+0 fekete","2 oldal","vágva",null,null,null,7050,2000,3000]
[null,100,{"$nulls":8},7400]
[null,150,{"$nulls":8},7800]
[{"$nulls":10},{"$f":"SUM(K581:K583)","v":22250},{"$f":"SUM(L581)","v":2000},{"$f":"SUM(M581)","v":3000}]
[null,"mennyiség (db)","papírminőség","méret","szín","terjedelem","kötészet",null,null,null,"Nyomdai kivitelezés díja (nettó Ft/össz. db)","Nyomdai előkészítés díja (ppt vagy egyéb nem nyomdai kompatibilis grafikai anyag esetén (nettó Ft)","Egyszerű gafikai tervezés, szerkesztés díja (1 komplett tervvariáció) (nettó Ft)"]
["Leckefüzet (2)",50,"Borító 170 g/m2 ofszet                Belív 70 g/m2 ofszet","210*148 mm","Borító 1+0 fekete Belív 1+1 fekete","8 oldal belív                    + 4 oldal borító","irkafűzés",null,null,null,19650,2000,3000]
[null,100,{"$nulls":8},22500]
[null,150,{"$nulls":8},24150]
[{"$nulls":10},{"$f":"SUM(K586:K588)","v":66300},{"$f":"SUM(L586)","v":2000},{"$f":"SUM(M586)","v":3000}]
[null,"mennyiség (db)","papírminőség","méret","szín","terjedelem","kötészet",null,null,null,"Nyomdai kivitelezés díja (nettó Ft/össz. db)","Nyomdai előkészítés díja (ppt vagy egyéb nem nyomdai kompatibilis grafikai anyag esetén (nettó Ft)","Egyszerű gafikai tervezés, szerkesztés díja (1 komplett tervvariáció) (nettó Ft)"]
["Leckefüzet (3)",50,"Borító 170 g/m2 ofszet                Belív 70 g/m2 ofszet","210*148 mm","Borító 1+0 fekete Belív 1+1 fekete","12 oldal belív                    + 4 oldal borító","irkafűzés",null,null,null,21400,2000,3000]
[null,100,{"$nulls":8},24200]
[null,150,{"$nulls":8},26250]
[{"$nulls":10},{"$f":"SUM(K591:K593)","v":71850},{"$f":"SUM(L591)","v":2000},{"$f":"SUM(M591)","v":3000}]
[null,"mennyiség (db)","papírminőség","méret","szín","terjedelem","kötészet",null,null,null,"Nyomdai kivitelezés díja (nettó Ft/össz. db)","Nyomdai előkészítés díja (ppt vagy egyéb nem nyomdai kompatibilis grafikai anyag esetén (nettó Ft)","Egyszerű gafikai tervezés, szerkesztés díja (1 komplett tervvariáció) (nettó Ft)"]
["Leckefüzet (4)",50,"Borító 170 g/m2 ofszet                Belív 70 g/m2 ofszet","210*148 mm","Borító 1+0 fekete Belív 1+1 fekete","16 oldal belív                    + 4 oldal borító","irkafűzés",null,null,null,22050,2000,3000]
[null,100,{"$nulls":8},25300]
[null,150,{"$nulls":8},27900]
[{"$nulls":10},{"$f":"SUM(K596:K598)","v":75250},{"$f":"SUM(L596)","v":2000},{"$f":"SUM(M596)","v":3000}]
[null,"mennyiség (db)","papírminőség","méret","szín","terjedelem","kötészet",null,null,null,"Nyomdai kivitelezés díja (nettó Ft/össz. db)","Nyomdai előkészítés díja (ppt vagy egyéb nem nyomdai kompatibilis grafikai anyag esetén (nettó Ft)","Egyszerű gafikai tervezés, szerkesztés díja (1 komplett tervvariáció) (nettó Ft)"]
["Leckefüzet (5)",50,"Borító 170 g/m2 ofszet                Belív 70 g/m2 ofszet","210*148 mm","Borító 1+0 fekete Belív 1+1 fekete","36 oldal belív                    + 4 oldal borító","irkafűzés",null,null,null,24600,2000,3000]
[null,100,{"$nulls":8},29200]
[null,150,{"$nulls":8},33600]
[{"$nulls":10},{"$f":"SUM(K601:K603)","v":87400},{"$f":"SUM(L601)","v":2000},{"$f":"SUM(M601)","v":3000}]
[null,"mennyiség (db)","papírminőség","méret","szín","terjedelem","kötészet",null,null,null,"Nyomdai kivitelezés díja (nettó Ft/össz. db)","Nyomdai előkészítés díja (ppt vagy egyéb nem nyomdai kompatibilis grafikai anyag esetén (nettó Ft)","Egyszerű gafikai tervezés, szerkesztés díja (1 komplett tervvariáció) (nettó Ft)"]
["Berendelő lap",250,"170 g/m2 ofszet","85*150 mm","1+1 fekete","2 oldal","vágva",null,null,null,7750,2000,3000]
[null,500,{"$nulls":8},9000]
[null,750,{"$nulls":8},9750]
[{"$nulls":10},{"$f":"SUM(K606:K608)","v":26500},{"$f":"SUM(L606)","v":2000},{"$f":"SUM(M606)","v":3000}]
[null,"mennyiség (db)","papírminőség","méret","szín","terjedelem","kötészet",null,null,null,"Nyomdai kivitelezés díja (nettó Ft/össz. db)","Nyomdai előkészítés díja (ppt vagy egyéb nem nyomdai kompatibilis grafikai anyag esetén (nettó Ft)","Egyszerű gafikai tervezés, szerkesztés díja (1 komplett tervvariáció) (nettó Ft)"]
["Fogszabályzó rendelő lap",100,"170 g/m2 ofszet","A5","1+0 fekete","2 oldal","vágva",null,null,null,7500,2000,3000]
[null,250,{"$nulls":8},8500]
[null,500,{"$nulls":8},10000]
[{"$nulls":10},{"$f":"SUM(K611:K613)","v":26000},{"$f":"SUM(L611)","v":2000},{"$f":"SUM(M611)","v":3000}]
[null,"mennyiség (db)","papírminőség","méret","szín","terjedelem","kötészet",null,null,null,"Nyomdai kivitelezés díja (nettó Ft/össz. db)","Nyomdai előkészítés díja (ppt vagy egyéb nem nyomdai kompatibilis grafikai anyag esetén (nettó Ft)","Egyszerű gafikai tervezés, szerkesztés díja (1 komplett tervvariáció) (nettó Ft)"]
["Lenyomat tartó doboz",250,"350 g karton","315*253 mm","1+0 fekete","2 oldal","vágva, stancolva",null,null,null,59000,2000,3000]
[null,500,{"$nulls":8},69500]
[null,750,{"$nulls":8},82500]
[{"$nulls":10},{"$f":"SUM(K616:K618)","v":211000},{"$f":"SUM(L616)","v":2000},{"$f":"SUM(M616)","v":3000}]
[null,"mennyiség (db)","papírminőség","méret","szín","terjedelem","kötészet",null,null,null,"Nyomdai kivitelezés díja (nettó Ft/össz. db)","Nyomdai előkészítés díja (ppt vagy egyéb nem nyomdai kompatibilis grafikai anyag esetén (nettó Ft)","Egyszerű gafikai tervezés, szerkesztés díja (1 komplett tervvariáció) (nettó Ft)"]
["Fogszabályozási kezelőkönyv",250,"Borító 170 g/m2 ofszet                Belív 70 g/m2 ofszet","A4","Borító 1+0 fekete Belív 1+0 fekete","20 oldal belív                  + 4 oldal borító","tűzve, sapkázva vászon csíkkal",null,null,null,73000,2000,8000]
[null,300,{"$nulls":8},84600]
[null,500,{"$nulls":8},130000]
[null,1000,{"$nulls":8},240000]
[null,250,"Borító 170 g/m2 ofszet                Belív 70 g/m2 ofszet","A4","Borító 1+0 fekete Belív 1+0 fekete","20 oldal belív                  + 4 oldal borító","tűzve, , hozott gentorem, irányított behúzással behúzve, sapkázva vászon csíkkal",null,null,null,82500]
[null,300,{"$nulls":8},95100]
[null,500,{"$nulls":8},143000]
[null,1000,{"$nulls":8},272000]
[{"$nulls":10},{"$f":"SUM(K621:K628)","v":1120200},{"$f":"SUM(L621)","v":2000},{"$f":"SUM(M621)","v":8000}]
[]
[]
["Minden nyomdai termék esetében a forrás anyag, a monitor optimalizált pdf, és a nyomdakész pdf a Megrendelő tulajdonát képezi, a hozzá kapcsolódó szerzői jogokkal együtt."]
["Teljesítésigazolás kiállításának a feltétele a Megrendelő részéről: A legyártott mennyiségnek és minőségnek, valamint határidőnek való megfelelés. A gyártott nyomdai termékek forrás anyagának/a monitor optimalizált pdf/nyomdakész pdf átadása fizikai adathordozón."]
[]
[]
[]
[{"$nulls":5},"Oszlopok mindösszesen: ",{"$nulls":4},{"$f":"K23+K31+K45+K185+K347+K405+K436+K446+K458+K470+K496+K501+K523+K531+K536+K562+K567+K572+K579+K584+K589+K594+K599+K604+K609+K614+K619+K629","v":206745588.50000003},{"$f":"L23+L31+L45+L185+L347+L405+L436+L446+L458+L470+L496+L501+L523+L531+L536+L562+L567+L572+L579+L584+L589+L594+L599+L604+L609+L614+L619+L629","v":105500},{"$f":"M23+M31+M45+M185+M347+M405+M436+M446+M458+M470+M496+M501+M523+M531+M536+M562+M567+M572+M579+M584+M589+M594+M599+M604+M609+M614+M619+M629","v":277000},{"$f":"N23+N31+N185+N347+N405+N436+N446+N458+N470+N531+N562","v":303000},{"$f":"SUM(O185,O347,O405,O436)","v":15852330},{"$f":"SUM(P185,P347,P405,P436)","v":15959013.5}]
[]
[{"$nulls":5},"Összehasonlítás érdekében kalkulált nettó ajánlati ár (K+L+M+N+O+P)",{"$nulls":4},{"$f":"SUM(K637,L637,M637,N637,O637,P637)","v":239242432.00000003}]

{"sheet":"2. részajánlati kör","index":1,"n_rows":135,"n_cols":14,"rows_kept":135,"cut":false,"hidden":false,"merged":[[29,3,34,3],[29,4,34,4],[85,9,95,9],[53,3,58,3],[53,4,58,4],[53,5,55,5],[111,0,112,0],[98,9,109,9],[98,10,109,10],[68,5,70,5],[136,0,136,7],[120,0,121,0],[114,0,115,0],[117,0,118,0],[130,5,130,7],[131,5,131,8],[134,0,134,11],[133,0,133,10],[98,0,109,0],[98,1,109,1],[98,2,109,2],[98,3,103,3],[98,4,100,4],[101,4,103,4],[104,3,109,3],[104,4,106,4],[107,4,109,4],[85,11,95,11],[85,4,88,4],[85,6,95,6],[89,4,95,4],[85,10,95,10],[85,0,95,0],[85,7,95,7],[85,1,95,1],[85,2,95,2],[85,3,95,3],[68,12,70,12],[73,11,82,11],[73,1,77,1],[73,2,77,2],[73,3,77,3],[78,1,82,1],[78,2,82,2],[73,0,82,0],[73,6,82,6],[73,9,82,9],[78,3,82,3],[73,10,82,10],[68,13,70,13],[65,3,70,3],[65,4,70,4],[65,5,67,5],[65,12,67,12],[59,13,61,13],[62,5,64,5],[62,12,64,12],[62,13,64,13],[59,12,61,12],[65,13,67,13],[23,11,70,11],[41,13,43,13],[44,5,46,5],[35,5,37,5],[35,12,37,12],[35,13,37,13],[38,5,40,5],[38,12,40,12],[38,13,40,13],[32,13,34,13],[23,9,70,9],[23,10,70,10],[29,5,31,5],[53,13,55,13],[56,5,58,5],[56,13,58,13],[50,12,52,12],[50,13,52,13],[41,5,43,5],[41,12,43,12],[47,4,52,4],[41,3,46,3],[41,4,46,4],[47,5,49,5],[47,12,49,12],[47,13,49,13],[50,5,52,5],[44,12,46,12],[44,13,46,13],[29,12,31,12],[23,5,25,5],[23,12,25,12],[23,13,25,13],[26,5,28,5],[26,12,28,12],[23,0,70,0],[23,1,46,1],[23,2,46,2],[23,3,28,3],[23,4,28,4],[35,3,40,3],[35,4,40,4],[47,1,70,1],[47,2,70,2],[47,3,52,3],[53,12,55,12],[56,12,58,12],[59,3,64,3],[59,4,64,4],[59,5,61,5],[29,13,31,13],[32,5,34,5],[32,12,34,12],[26,13,28,13],[15,10,20,10],[15,11,20,11],[15,12,20,12],[15,13,20,13],[15,1,16,1],[15,2,16,2],[15,3,16,3],[15,5,16,5],[15,6,16,6],[17,6,18,6],[14,0,20,0],[17,1,18,1],[17,2,18,2],[17,3,18,3],[17,5,18,5],[7,9,12,9],[6,0,12,0],[10,4,12,4],[10,6,12,6],[15,9,20,9],[19,1,20,1],[19,2,20,2],[19,3,20,3],[19,5,20,5],[19,6,20,6],[7,10,12,10],[7,11,12,11],[7,1,9,1],[7,2,9,2],[7,3,9,3],[7,4,9,4],[7,6,9,6],[10,1,12,1],[10,2,12,2],[10,3,12,3],[1,10,4,10],[1,11,4,11],[1,12,4,12],[1,13,4,13],[3,1,4,1],[3,3,4,3],[3,5,4,5],[0,0,4,0],[1,1,2,1],[1,3,2,3],[1,5,2,5],[1,6,4,6],[1,9,4,9]]}
["Keménytáblás kiadvány","mennyiség (db)","papírminőség","méret","szín","terjedelem","kötészet",null,"Nyomdai kivitelezés díja (nettó Ft/össz. db)","Nyomdai előkészítés díja (nem nyomdai kompatibilis grafikai anyag esetén (nettó Ft)","Egyszerű grafikai tervezés (borító + 1 oldalpár) pályázati arculat alapján 1 komplett tervvariáció díja (nettó Ft) ","Grafikai tervezés (borító + 1 oldalpár) egyéb arculat alapján 3 komplett tervvariáció díja (nettó Ft) ","Tördelés-szerkesztés egyszerű, 2 elektronikus korrektúraforduló lebonyolításával (nettó Ft/össz. oldal)","Tördelés-szerkesztés összetett, 2 elektronikus korrektúraforduló lebonyolításával (nettó Ft/össz. oldal)"]
[null,100,"Borító 135 g/m2 műnyomó             Belív 80 g/m2 ofszet                             Táblalemez 1400 g 2 mm-es Előzék 140 g/m2 ofszet","Vágott B/5 (mérettől függetlenül)","Borító 4+0               Belív 1+1 fekete Táblalemez 0+0 Előzék 0+0","160 old. Belív + 4 old. Borító + 4 old. Táblalemez + 2*4 old. Előzék","cérnafűzött, egyenes hát, borító fényes fóliázva"]
[null,null,"Borító 135 g/m2 műnyomó             Belív 135 g/m2 műnyomó Táblalemez 1400 g 2 mm-es Előzék 140 g/m2 ofszet",null,"Borító 4+0              Belív 4+4 Táblalemez 0+0 Előzék 4+0"]
[null,300,"Borító 135 g/m2 műnyomó             Belív 80 g/m2 ofszet                             Táblalemez 1400 g 2 mm-es Előzék 140 g/m2 ofszet","Vágott B/5 (mérettől függetlenül)","Borító 4+0               Belív 1+1 fekete Táblalemez 0+0 Előzék 0+0","160 old. Belív + 4 old. Borító + 4 old. Táblalemez + 2*4 old. Előzék"]
[null,null,"Borító 135 g/m2 műnyomó             Belív 135 g/m2 műnyomó Táblalemez 1400 g 2 mm-es Előzék 140 g/m2 ofszet",null,"Borító 4+0              Belív 4+4 Táblalemez 0+0 Előzék 4+0"]
[{"$nulls":8},{"$f":"SUM(I2:I5)","v":0},{"$f":"SUM(J2)","v":0},{"$f":"SUM(K2)","v":0},{"$f":"SUM(L2)","v":0},{"$f":"SUM(M2:M5)","v":0},{"$f":"SUM(N2:N5)","v":0}]
["Kiadvány (1)","mennyiség (db)","papírminőség","méret","szín","terjedelem","kötészet",null,"Nyomdai kivitelezés díja (nettó Ft/össz. db)","Nyomdai előkészítés díja (nem nyomdai kompatibilis grafikai anyag esetén (nettó Ft)","Egyszerű grafikai tervezés (borító + 1 oldalpár) pályázati arculat alapján 1 komplett tervvariáció díja (nettó Ft) ","Grafikai tervezés (borító + 1 oldalpár) egyéb arculat alapján 3 komplett tervvariáció díja (nettó Ft) ","Tördelés-szerkesztés egyszerű, 2 elektronikus korrektúraforduló lebonyolításával (nettó Ft/össz. oldal)","Tördelés-szerkesztés összetett, 2 elektronikus korrektúraforduló lebonyolításával (nettó Ft/össz. oldal)"]
[null,300,"80 g/m2 ofszet","A/4","1+1 (fekete)","12 oldal","irkafűzve"]
[{"$nulls":5},"36 oldal"]
[{"$nulls":5},"56 oldal"]
[null,500,"80 g/m2 ofszet","A/4","1+1 (fekete)","12 oldal","irkafűzve"]
[{"$nulls":5},"36 oldal"]
[{"$nulls":5},"56 oldal"]
[{"$nulls":8},{"$f":"SUM(I8:I13)","v":0},{"$f":"SUM(J8)","v":0},{"$f":"SUM(K8)","v":0},{"$f":"SUM(L8)","v":0},{"$f":"SUM(M8:M13)","v":0},{"$f":"SUM(N8:N13)","v":0}]
["Kiadvány (2)","mennyiség (db)","papírminőség","méret","szín","terjedelem","kötészet",null,"Nyomdai kivitelezés díja (nettó Ft/össz. db)","Nyomdai előkészítés díja (nem nyomdai kompatibilis grafikai anyag esetén (nettó Ft)","Egyszerű grafikai tervezés (borító + 1 oldalpár) pályázati arculat alapján 1 komplett tervvariáció díja (nettó Ft) ","Grafikai tervezés (borító + 1 oldalpár) egyéb arculat alapján 3 komplett tervvariáció díja (nettó Ft) ","Tördelés-szerkesztés egyszerű, 2 elektronikus korrektúraforduló lebonyolításával (nettó Ft/össz. oldal)","Tördelés-szerkesztés összetett, 2 elektronikus korrektúraforduló lebonyolításával (nettó Ft/össz. oldal)"]
[null,300,"130 g/m2 műnyomó","A4","1+1 fekete","8 oldal","irkafűzve"]
[{"$nulls":4},"4+4"]
[null,500,"130 g/m2 műnyomó","A4","1+1 fekete","8 oldal","irkafűzve"]
[{"$nulls":4},"4+4"]
[null,1000,"130 g/m2 műnyomó","A4","1+1 fekete","8 oldal","irkafűzve"]
[{"$nulls":4},"4+4"]
[{"$nulls":8},{"$f":"SUM(I16:I21)","v":0},{"$f":"SUM(J16)","v":0},{"$f":"SUM(K16)","v":0},{"$f":"SUM(L16)","v":0},{"$f":"SUM(M16:M21)","v":0},{"$f":"SUM(N16:N21)","v":0}]
[null,"mennyiség (db)","papírminőség","méret","szín","terjedelem","konfekcionálás","kötészet","Nyomdai kivitelezés díja (nettó Ft/össz. db)","Nyomdai előkészítés díja (nem nyomdai kompatibilis grafikai anyag esetén (nettó Ft)","Egyszerű grafikai tervezés (borító + 1 oldalpár) pályázati arculat alapján 1 komplett tervvariáció díja (nettó Ft) ","Grafikai tervezés (borító + 1 oldalpár) egyéb arculat alapján 3 komplett tervvariáció díja (nettó Ft) ","Tördelés-szerkesztés egyszerű, 2 elektronikus korrektúraforduló lebonyolításával (nettó Ft/össz. oldal)","Tördelés-szerkesztés összetett, 2 elektronikus korrektúraforduló lebonyolításával (nettó Ft/össz. oldal)"]
["Kiadvány(3)",100,"Borító 300 g/m2 műnyomó\nBelív 80 g/m2 ofszet","A/4","Borító 4+4\nBelív 1+1 fekete","52 oldal belív \n+ 4 oldal borító","-","irkafűzve"]
[{"$nulls":6},"borító fóliázva","irkafűzve"]
[{"$nulls":6},"borító fóliázva + UV lakk egy oldalon","irkafűzve"]
[{"$nulls":5},"156 oldal belív \n+ 4 oldal borító","-","ragasztókötés"]
[{"$nulls":6},"borító fóliázva","ragasztókötés"]
[{"$nulls":6},"borító fóliázva + UV lakk egy oldalon","ragasztókötés"]
[null,null,null,"A/4","Borító 4+4\nBelív 4+4","52 oldal belív \n+ 4 oldal borító","-","irkafűzve"]
[{"$nulls":6},"borító fóliázva","irkafűzve"]
[{"$nulls":6},"borító fóliázva + UV lakk egy oldalon","irkafűzve"]
[{"$nulls":5},"156 oldal belív \n+ 4 oldal borító","-","ragasztókötés"]
[{"$nulls":6},"borító fóliázva","ragasztókötés"]
[{"$nulls":6},"borító fóliázva + UV lakk egy oldalon","ragasztókötés"]
[null,null,null,"A/5","Borító 4+4\nBelív 1+1 fekete","52 oldal belív \n+ 4 oldal borító","-","irkafűzve"]
[{"$nulls":6},"borító fóliázva","irkafűzve"]
[{"$nulls":6},"borító fóliázva + UV lakk egy oldalon","irkafűzve"]
[{"$nulls":5},"156 oldal belív \n+ 4 oldal borító","-","ragasztókötés"]
[{"$nulls":6},"borító fóliázva","ragasztókötés"]
[{"$nulls":6},"borító fóliázva + UV lakk egy oldalon","ragasztókötés"]
[null,null,null,"A/5","Borító 4+4\nBelív 4+4","52 oldal belív \n+ 4 oldal borító","-","irkafűzve"]
[{"$nulls":6},"borító fóliázva","irkafűzve"]
[{"$nulls":6},"borító fóliázva + UV lakk egy oldalon","irkafűzve"]
[{"$nulls":5},"156 oldal belív \n+ 4 oldal borító","-","ragasztókötés"]
[{"$nulls":6},"borító fóliázva","ragasztókötés"]
[{"$nulls":6},"borító fóliázva + UV lakk egy oldalon","ragasztókötés"]
[null,300,"Borító 300 g/m2 műnyomó\nBelív 80 g/m2 ofszet","A/4","Borító 4+4\nBelív 1+1 fekete","52 oldal belív \n+ 4 oldal borító","-","irkafűzve"]
[{"$nulls":6},"borító fóliázva","irkafűzve"]
[{"$nulls":6},"borító fóliázva + UV lakk egy oldalon","irkafűzve"]
[{"$nulls":5},"156 oldal belív \n+ 4 oldal borító","-","ragasztókötés"]
[{"$nulls":6},"borító fóliázva","ragasztókötés"]
[{"$nulls":6},"borító fóliázva + UV lakk egy oldalon","ragasztókötés"]
[null,null,null,"A/4","Borító 4+4\nBelív 4+4","52 oldal belív \n+ 4 oldal borító","-","irkafűzve"]
[{"$nulls":6},"borító fóliázva","irkafűzve"]
[{"$nulls":6},"borító fóliázva + UV lakk egy oldalon","irkafűzve"]
[{"$nulls":5},"156 oldal belív \n+ 4 oldal borító","-","ragasztókötés"]
[{"$nulls":6},"borító fóliázva","ragasztókötés"]
[{"$nulls":6},"borító fóliázva + UV lakk egy oldalon","ragasztókötés"]
[null,null,null,"A/5","Borító 4+4\nBelív 1+1 fekete","52 oldal belív \n+ 4 oldal borító","-","irkafűzve"]
[{"$nulls":6},"borító fóliázva","irkafűzve"]
[{"$nulls":6},"borító fóliázva + UV lakk egy oldalon","irkafűzve"]
[{"$nulls":5},"156 oldal belív \n+ 4 oldal borító","-","ragasztókötés"]
[{"$nulls":6},"borító fóliázva","ragasztókötés"]
[{"$nulls":6},"borító fóliázva + UV lakk egy oldalon","ragasztókötés"]
[null,null,null,"A/5","Borító 4+4\nBelív 4+4","52 oldal belív \n+ 4 oldal borító","-","irkafűzve"]
[{"$nulls":6},"borító fóliázva","irkafűzve"]
[{"$nulls":6},"borító fóliázva + UV lakk egy oldalon","irkafűzve"]
[{"$nulls":5},"156 oldal belív \n+ 4 oldal borító","-","ragasztókötés"]
[{"$nulls":6},"borító fóliázva","ragasztókötés"]
[{"$nulls":6},"borító fóliázva + UV lakk egy oldalon","ragasztókötés"]
[{"$nulls":8},{"$f":"SUM(I24:I71)","v":0},{"$f":"SUM(J24)","v":0},{"$f":"SUM(K24)","v":0},{"$f":"SUM(L24)","v":0},{"$f":"SUM(M24:M71)","v":0},{"$f":"SUM(N24:N71)","v":0}]
[null,"mennyiség (db)","papírminőség","méret","szín","terjedelem","kötészet",null,"Nyomdai kivitelezés díja (nettó Ft/össz. db)","Nyomdai előkészítés díja (nem nyomdai kompatibilis grafikai anyag esetén (nettó Ft)","Egyszerű grafikai tervezés (borító + 1 oldalpár) pályázati arculat alapján 1 komplett tervvariáció díja (nettó Ft) ","Grafikai tervezés (borító + 1 oldalpár) egyéb arculat alapján 3 komplett tervvariáció díja (nettó Ft) ","Tördelés-szerkesztés egyszerű, 2 elektronikus korrektúraforduló lebonyolításával (nettó Ft/össz. oldal)","Tördelés-szerkesztés összetett, 2 elektronikus korrektúraforduló lebonyolításával (nettó Ft/össz. oldal)"]
["Kiadvány(4)",300,"Borító 250 g/m2 cyclus ofszet\nbelív 80g/m2 cyclus ofszet","A5","4+4","20 oldal belív\n+ 4 oldal borító","irkafűzött"]
[{"$nulls":4},"4+4","28 oldal belív\n+ 4 oldal borító"]
[{"$nulls":4},"4+4","36 oldal belív\n+ 4 oldal borító"]
[{"$nulls":4},"4+4","44 oldal belív\n+ 4 oldal borító"]
[{"$nulls":4},"4+4","52 oldal belív\n+ 4 oldal borító"]
[null,500,"Borító 250 g/m2 cyclus ofszet\nbelív 80g/m2 cyclus ofszet","A5","4+4","20 oldal belív\n+ 4 oldal borító"]
[{"$nulls":4},"4+4","28 oldal belív\n+ 4 oldal borító"]
[{"$nulls":4},"4+4","36 oldal belív\n+ 4 oldal borító"]
[{"$nulls":4},"4+4","44 oldal belív\n+ 4 oldal borító"]
[{"$nulls":4},"4+4","52 oldal belív\n+ 4 oldal borító"]
[{"$nulls":8},{"$f":"SUM(I74:I83)","v":0},{"$f":"SUM(J74)","v":0},{"$f":"SUM(K74)","v":0},{"$f":"SUM(L74)","v":0},{"$f":"SUM(M74:M83)","v":0},{"$f":"SUM(N74:N83)","v":0}]
[null,"mennyiség (db)","papírminőség","méret","szín","terjedelem","konfekcionálás","kötészet","Nyomdai kivitelezés díja (nettó Ft/össz. db)","Nyomdai előkészítés díja (nem nyomdai kompatibilis grafikai anyag esetén (nettó Ft)","Egyszerű grafikai tervezés (borító + 1 oldalpár) pályázati arculat alapján 1 komplett tervvariáció díja (nettó Ft) ","Grafikai tervezés (borító + 1 oldalpár) egyéb arculat alapján 3 komplett tervvariáció díja (nettó Ft) ","Tördelés-szerkesztés egyszerű, 2 elektronikus korrektúraforduló lebonyolításával (nettó Ft/össz. oldal)","Tördelés-szerkesztés összetett, 2 elektronikus korrektúraforduló lebonyolításával (nettó Ft/össz. oldal)"]
["Kiadvány(5)",300,"Borító300 g/m2 műnyomó                        Belív 130 g/m2 műnyomó","Vágott B5 (pontos mérettől függetlenül)","Borító 4+4          Belív 1+1 (fekete)","Belív 12 oldal                 Borító 4 oldal","Borító matt fóliázva","irkafűzött"]
[{"$nulls":5},"Belív 20 oldal                 Borító 4 oldal"]
[{"$nulls":5},"Belív 28 oldal                 Borító 4 oldal"]
[{"$nulls":5},"Belív 36 oldal                 Borító 4 oldal"]
[{"$nulls":4},"Borító 4+4          Belív 4+4","Belív 12 oldal                 Borító 4 oldal"]
[{"$nulls":5},"Belív 16 oldal                 Borító 4 oldal"]
[{"$nulls":5},"Belív 20 oldal                 Borító 4 oldal"]
[{"$nulls":5},"Belív 24 oldal                 Borító 4 oldal"]
[{"$nulls":5},"Belív 28 oldal                 Borító 4 oldal"]
[{"$nulls":5},"Belív 32 oldal                 Borító 4 oldal"]
[{"$nulls":5},"Belív 36 oldal                 Borító 4 oldal"]
[{"$nulls":8},{"$f":"SUM(I86:I96)","v":0},{"$f":"SUM(J86)","v":0},{"$f":"SUM(K86)","v":0},{"$f":"SUM(L86)","v":0},{"$f":"SUM(M86:M96)","v":0},{"$f":"SUM(N86:N96)","v":0}]
[null,"mennyiség (db)","papírminőség","méret","szín","terjedelem","kötészet",null,"Nyomdai kivitelezés díja (nettó Ft/össz. db)","Nyomdai előkészítés díja (ppt vagy egyéb nem nyomdai kompatibilis grafikai anyag esetén (nettó Ft)","Egyszerű gafikai tervezés, szerkesztés díja (1 komplett tervvariáció) (nettó Ft)"]
["Jegyzettömb",100,"80 g/m2 ofszet","A4","2+0","10 lap","enyvezve"]
[{"$nulls":5},"20 lap","enyvezve"]
[{"$nulls":5},"50 lap","enyvezve"]
[{"$nulls":4},"4+0","10 lap","enyvezve"]
[{"$nulls":5},"20 lap","enyvezve"]
[{"$nulls":5},"50 lap","enyvezve"]
[null,null,null,"A5","2+0","10 lap","enyvezve"]
[{"$nulls":5},"20 lap","enyvezve"]
[{"$nulls":5},"50 lap","enyvezve"]
[{"$nulls":4},"4+0","10 lap","enyvezve"]
[{"$nulls":5},"20 lap","enyvezve"]
[{"$nulls":5},"50 lap","enyvezve"]
[{"$nulls":8},{"$f":"SUM(I99:I110)","v":0},{"$f":"SUM(J99)","v":0},{"$f":"SUM(K99)","v":0}]
["Meghívó","mennyiség (db)","papírminőség","méret","szín","konfekcionálás","kötészet",null,"Nyomdai kivitelezés díja (nettó Ft/össz. db)","Nyomdai előkészítés díja (ppt vagy egyéb nem nyomdai kompatibilis grafikai anyag esetén (nettó Ft)","Egyszerű gafikai tervezés, szerkesztés díja (1 komplett tervvariáció) (nettó Ft)"]
[null,100,"300 g/m2 műnyomó","A5","4+4","matt fólia 2 oldalon","biegelve, hajtva"]
[{"$nulls":8},{"$f":"SUM(I113)","v":0},{"$f":"SUM(J113)","v":0},{"$f":"SUM(K113)","v":0}]
["Mappa","mennyiség (db)","papírminőség","méret","szín","konfekcionálás","kötészet",null,"Nyomdai kivitelezés díja (nettó Ft/össz. db)","Nyomdai előkészítés díja (ppt vagy egyéb nem nyomdai kompatibilis grafikai anyag esetén (nettó Ft)","Egyszerű gafikai tervezés, szerkesztés díja (pályázati arculat alapján 1 komplett tervvariáció) (nettó Ft)","Grafikai tervezés, szerkesztés díja (egyéb arculat alapján 3 komplett tervvariáció) (nettó Ft)"]
[null,100,"350 g műnyomó","A4 kiadványt befogadó kiterített méret 45 cm széles, 31 cm magas, alsó lehajtható rész 6 cm, 5 mm-es gerinccel, alul-felül stancolt füllel stancolt névjegytartóval, vagy a megadott mérethez hasonló méret +-1 cm eltéréssel. A stancformát a cégnek kell biztosítani","4+0","fóliázva matt fóliával","A mappákat kiterített állapotban kérjük szállítani."]
[{"$nulls":8},{"$f":"SUM(I116)","v":0},{"$f":"SUM(J116)","v":0},{"$f":"SUM(K116)","v":0},{"$f":"SUM(L116)","v":0}]
["Leporelló","mennyiség (db)","papírminőség","méret","szín","kötészet",null,null,"Nyomdai kivitelezés díja (nettó Ft/össz. db)","Nyomdai előkészítés díja (ppt vagy egyéb nem nyomdai kompatibilis grafikai anyag esetén (nettó Ft)","Egyszerű gafikai tervezés, szerkesztés díja (pályázati arculat alapján 1 komplett tervvariáció) (nettó Ft)","Grafikai tervezés, szerkesztés díja (egyéb arculat alapján 3 komplett tervvariáció) (nettó Ft)"]
[null,50,"130 g műnyomó","A4 kétoldalas","4+4","kétszer hajtva"]
[{"$nulls":8},{"$f":"SUM(I119)","v":0},{"$f":"SUM(J119)","v":0},{"$f":"SUM(K119)","v":0},{"$f":"SUM(L119)","v":0}]
["Papírtáska","mennyiség (db)","papírminőség","méret","szín","konfekcionálás","fül",null,"Nyomdai kivitelezés díja (nettó Ft/össz.db)","Nyomdai előkészítés díja (ppt vagy egyéb nem nyomdai kompatibilis grafikai anyag esetén (nettó Ft)","Egyszerű gafikai tervezés, szerkesztés díja (pályázati arculat alapján 1 komplett tervvariáció) (nettó Ft)","Gafikai tervezés, szerkesztés díja (egyéb arculat alapján 3 komplett tervvariáció) (nettó Ft)"]
[null,50,"170 g/m2 műnyomó","250*340*110 mm","4+0","egy oldal fényes fólia, stancolva, beigelve, összeállítva","stenderd zsinórfüllel"]
[{"$nulls":8},{"$f":"SUM(I122)","v":0},{"$f":"SUM(J122)","v":0},{"$f":"SUM(K122)","v":0},{"$f":"SUM(L122)","v":0}]
{"$rows_empty":7}
[{"$nulls":5},"Oszlopok mindösszesen:",null,null,{"$f":"SUM(I123,I120,I117,I114,I111,I97,I84,I72,I22,I14,I6)","v":0},{"$f":"SUM(J123,J120,J117,J114,J111,J97,J84,J72,J22,J14,J6)","v":0},{"$f":"SUM(K123,K120,K117,K114,K111,K97,K84,K72,K22,K14,K6)","v":0},{"$f":"SUM(L123,L120,L117,L97,L84,L72,L22,L14, L6)","v":0},{"$f":"SUM(M97,M84,M72,M22,M14,M6)","v":0},{"$f":"SUM(N97,N84,N72,N22,N14,N6)","v":0}]
[{"$nulls":5},"Összehasonlítás érdekében kalkulált nettó ajánlati ár (I+J+K+L+M+N):",null,null,null,{"$f":"SUM(I131,J131,K131,L131,M131,N131)","v":0}]
[]
["Minden nyomdai termék esetében a forrás anyag, a monitor optimalizált pdf, és a nyomdakész pdf a Megrendelő tulajdonát képezi, a hozzá kapcsolódó szerzői jogokkal együtt."]
["Teljesítésigazolás kiállításának a feltétele a Megrendelő részéről: A legyártott mennyiségnek és minőségnek, valamint határidőnek való megfelelés. A gyártott nyomdai termékek forrás anyagának/a monitor optimalizált pdf/nyomdakész pdf átadása fizikai adathordozón."]